{"text_format":"3","workbook":"xlsx","n_sheets":3,"sheets":["Teacher Weekly Schedule","Readme","PSW_Sheet"],"not_rendered":{"defined_names":222},"cells_cut":10,"read":"whole","date_system":"1900"}

{"sheet":"Teacher Weekly Schedule","index":0,"n_rows":25,"n_cols":24,"rows_kept":25,"merged":[[1,1,1,14],[2,1,2,14],[4,1,4,5],[4,7,4,11],[4,13,4,17],[15,1,15,5],[15,7,15,11],[15,13,15,17],[17,13,17,17],[18,13,18,17],[19,14,19,17],[20,14,20,17],[22,16,22,17],[24,16,24,17]]}
[]
[null,{"$f":"School_Name","v":"ABC Elemantary"},{"$nulls":13},"From:"]
[null,{"$f":"Teacher_Name&\"'s Weekly Schedule\"","v":"J.Brown's Weekly Schedule"},{"$nulls":13},"To:",{"$f":"Q2+4","v":"1900-01-04"}]
[]
[null,"Monday",{"$nulls":5},"Tuesday",{"$nulls":5},"Wednesday",{"$nulls":6},{"$f":"SUM(G7:G25,M7:M25,S7:S14)","v":3.01},"Yes"]
[null,"Per.","Class","Course","Plan","Done?",null,"Per.","Class","Course","Plan","Done?",null,"Per.","Class","Course","Plan","Done?",null,null,{"$f":"(U5-INT(U5))*100+INT(U5)","v":3.9999999999999787},"No","Done",{"$f":"Nb_of_Completed_Plans","v":3}]
[null,1,"6 Gr.","Maths","Integers","Yes",{"$f":"IF(OR(C7=\"\",D7=\"\"),0,IF(OR(F7=\"No\",F7=\"\"),0.01,1))","v":1},1,{"$nulls":4},{"$f":"IF(OR(I7=\"\",J7=\"\"),0,IF(OR(L7=\"No\",L7=\"\"),0.01,1))","v":0},1,{"$nulls":4},{"$f":"IF(OR(O7=\"None\",O7=\"None\",P7=\"None\",P7=\"None\",O7=\"\",P7=\"\"),0,IF(OR(R7=\"No\",R7=\"\"),0.01,1))","v":0},null,{"$f":"INT(U5)","v":3},null,"Undone",{"$f":"Nb_of_Plans-Nb_of_Completed_Plans","v":0.9999999999999787}]
[null,2,"7 Gr.","Maths","Powers","Yes",{"$f":"IF(OR(C8=\"\",D8=\"\"),0,IF(OR(F8=\"No\",F8=\"\"),0.01,1))","v":1},2,{"$nulls":4},{"$f":"IF(OR(I8=\"\",J8=\"\"),0,IF(OR(L8=\"No\",L8=\"\"),0.01,1))","v":0},2,{"$nulls":4},0]
[null,3,{"$nulls":4},0,3,{"$nulls":4},0,3,{"$nulls":4},0]
[null,4,{"$nulls":4},0,4,"6 Gr.","Geo.","Triangles","Yes",1,4,{"$nulls":4},0]
[null,5,{"$nulls":4},0,5,"7 Gr.","Geo.","Trapezoids","No",0.01,5,{"$nulls":4},0]
[null,6,{"$nulls":4},0,6,{"$nulls":4},0,6,{"$nulls":4},0]
[null,7,{"$nulls":4},0,7,{"$nulls":4},0,7,{"$nulls":4},0]
[null,8,{"$nulls":4},0,8,{"$nulls":4},0,8,{"$nulls":4},0]
[]
[null,"Thursday",{"$nulls":5},"Friday",{"$nulls":5},"Schedule Analysis of the Week"]
[null,"Per.","Class","Course","Plan","Done?",null,"Per.","Class","Course","Plan","Done?"]
[null,1,{"$nulls":4},{"$f":"IF(OR(C18=\"\",D18=\"\"),0,IF(OR(F18=\"No\",F18=\"\"),0.01,1))","v":0},1,{"$nulls":4},{"$f":"IF(OR(I18=\"\",J18=\"\"),0,IF(OR(L18=\"No\",L18=\"\"),0.01,1))","v":0},{"$f":"\"At the week beginning from \"&TEXT(Beg_Date,\"mm/dd/yyyy\")&\" to \"&TEXT(End_Date,\"mm/dd/yy\")","v":{"$error":"#VALUE!"}}]
[null,2,{"$nulls":4},{"$f":"IF(OR(C19=\"\",D19=\"\"),0,IF(OR(F19=\"No\",F19=\"\"),0.01,1))","v":0},2,{"$nulls":4},{"$f":"IF(OR(I19=\"\",J19=\"\"),0,IF(OR(L19=\"No\",L19=\"\"),0.01,1))","v":0},{"$f":"\"up to now:\"","v":"up to now:"}]
[null,3,{"$nulls":4},0,3,{"$nulls":4},0,null,{"$f":"TEXT(Nb_of_Plans,\"##\")&\" courses and plans have been scheduled\"","v":"4 courses and plans have been scheduled"}]
[null,4,{"$nulls":4},0,4,{"$nulls":4},0,null,{"$f":"TEXT(Nb_of_Completed_Plans,\"##\")&\" of these plans have been completed\"","v":"3 of these plans have been completed"}]
[null,5,{"$nulls":4},0,5,{"$nulls":4},0]
[null,6,{"$nulls":4},0,6,{"$nulls":4},0]
[null,7,{"$nulls":4},0,7,{"$nulls":4},0]
[null,8,{"$nulls":4},0,8,{"$nulls":4},0]

{"sheet":"Readme","index":1,"n_rows":29,"n_cols":19,"rows_kept":29,"merged":[[4,7,4,9],[5,7,5,9]]}
[]
[]
[{"$nulls":3},"Follow the steps below to enable your Teacher's Weekly Schedule"]
[]
[null,null,"1)","Type the name of your school:",{"$nulls":3},"ABC Elemantary",{"$nulls":9},"None","None"]
[null,null,"2)","Type your name.",{"$nulls":3},"J.Brown"]
[]
[null,null,"3)","Now, your Weekly Schedule is ready to use."]
[{"$nulls":3},"You can also upload this form to the web. For this purpose, visit the site below to signup"]
[{"$nulls":3},"for a free web account. Ignore the downloaded software. You will only need the username"]
[{"$nulls":3},"and password."]
[{"$nulls":3},"http://www.spreadsheetweb.com/getting_started.htm"]
[null,null,"4)","Login to the below page:"]
[{"$nulls":3},"http://www4.spreadsheetweb.com/SpreadsheetWEB/"]
[null,null,"5)","Go to \"Applications\" tab and click \"Add New Application\" to upload the Excel file. Your online"]
[{"$nulls":3},"Weekly Schedule will be created automatically."]
[{"$nulls":3},"You can simply use and share the provided link of the calculator or place it on your website."]
[null,null,"6)","Using the \"Save  Schedule\" button, you can save the schedule. This process allows you to reach this schedule later."]
[{"$nulls":3},"Your schedule will be saved with the dates. Hence, you can save schedules for every week. "]
[{"$nulls":3},"You can reach the saved schedules using the \"Data\" tab. You will see all the saved schedules in this tab, and you can"]
[{"$nulls":3},"see the details by clicking on the file."]
[]
[null,null,">>","Your online Weekly Schedule will look like:"]
[{"$nulls":3},"https://www4.spreadsheetweb.com/SpreadSheetWEB/Output.aspx?ApplicationId=f56e80b1-e0a1-4aae-9cb6-c3ee84289920"]
[null,null,">>","To see more web based Excel applications, visit the site below:"]
[{"$nulls":3},"http://www.spreadsheetweb.com/demos.htm"]
[]
[]
[{"$nulls":3},"Copyright (c) 2009 Pagos, Inc., http://www.pagos.com/"]

{"sheet":"PSW_Sheet","index":2,"n_rows":11,"n_cols":8,"rows_kept":11,"hidden":true}
[{"$cut":{"chars":32761,"head":" %3c%3fxml+version%3d%221.0%22+encoding%3d%22utf-16%22%3f%3e%0d%0a%3cPageInputCells+xmlns%3axsi%3d%22http%3a%2f%2fwww.w3.org%2f2001%2fXMLSchema-instance%22+xmlns%3axsd%3d%22http%3a%2f%2fwww.w3.org%2f2001%2fXMLSchema%22%3e%0d%0a++%3cInputCells+InputPrefix%3d%22PSWInput_%22+ListPrefix%3d%22PSWList_%22+CellCount%3d%22161%22%3e%0d%0a++++%3cCells%3e%0d%0a++++++%3cAddress%3e%3d'Teacher+Weekly+Schedule'!%24F%247%3c%2fAddress%3e%0d%0a++++++%3cListItemsAddress%3e%3d'Teacher+Weekly+Schedule'!%24V%245%3a%24V%246%3c%2fListItemsAddress%3e%0d%0a++++++%3cNameIndex%3e0%3c%2fNameIndex%3e%0d%0a++++++%3cIsHidingEnabled%3efalse%3c%2fIsHidingEnabled%3e%0d%0a++++++%3cIsDisablingEnabled%3efalse%3c%2fIsDisablingEnabled%3e%0d%0a++++++%3cRequiresValidation%3efalse%3c%2fRequiresValidation%3e%0d%0a++++++%3cIsRequired%3efalse%3c%2fIsRequired%3e%0d%0a++++++%3cType%3eCheck+Box%3c%2fType%3e%0d%0a++++++%3cDefaultValue%3eNo%3c%2fDefaultValue%3e%0d%0a++++++%3cValueType+%2f%3e%0d%0a++++%3c%2fCells%3e%0d%0a++++%3cCells%3e%0d%0a++++++%3cAddress%3e%3d'Teacher+Weekly+Schedule'!%24F%248%3c%2fAddress%3e%0d%0a++++++%3cListItemsAddress%3e%3d'Teacher+Weekly+Schedule'!%24V%245%3a%24V%246%3c%2fListItemsAddress%3e%0d%0a++++++%3cNameIndex%3e1%3c%2fNameIndex%3e%0d%0a++++++%3cIsHidingEnabled%3efalse%3c%2fIsHidingEnabled%3e%0d%0a++++++%3cIsDisablingEnabled%3efalse%3c%2fIsDisablingEnabled%3e%0d%0a++++++%3cRequiresValidation%3efalse%3c%2fRequiresValidation%3e%0d%0a++++++%3cIsRequired%3efalse%3c%2fIsRequired%3e%0d%0a++++++%3cType%3eCheck+Box%3c%2fType%3e%0d%0a++++++%3cDefaultValue%3eNo%3c%2fDefaultValue%3e%0d%0a++++++%3cValueType+%2f%3e%0d%0a++++%3c%2fCells%3e%0d%0a++++%3cCells%3e%0d%0a++++++%3cAddress%3e%3d'Teacher+Weekly+Schedule'!%24F%249%3c%2fAddress%3e%0d%0a++++++%3cListItemsAddress%3e%3d'Teacher+Weekly+Schedule'!%24V%245%3a%24V%246%3c%2fListItemsAddress%3e%0d%0a++++++%3cNameIndex%3e2%3c%2fNameIndex%3e%0d%0a++++++%3cIsHidingEnabled%3efalse%3c%2fIsHidingEnabled%3e%0d%0a++++++%3cIsDisablingEnabled%3efalse%3c%2fIsDisablingEnabled%3e%0d%0a++++++%3cRequiresValidation%3efalse%3c%2fRequiresValidation%3e%0d%0a++++++%3cIsRequired%3efalse%3c%2fIsRequired%3e%0d%0a++++++%3cType%3eCheck+Box%3c%2fType%3e%0d%0a++++++%3cDefaultValue%3eNo%3c%2fDefaultValue%3e%0d%0a++++++%3cValueType+%2f%3e%0d%0a++++%3c%2fCells%3e%0d%0a++++%3cCells%3e%0d%0a++++++%3cAddress%3e%3d'Teacher+Weekly+Schedule'!%24F%2410%3c%2fAddress%3e%0d%0a++++++%3cListItemsAddress%3e%3d'Teacher+Weekly+Schedule'!%24V%245%3a%24V%246%3c%2fListItemsAddress%3e%0d%0a++++++%3cNameIndex%3e3%3c%2fNameIndex%3e%0d%0a++++++%3cIsHidingEnabled%3efalse%3c%2fIsHidingEnabled%3e%0d%0a++++++%3cIsDisablingEnabled%3efalse%3c%2fIsDisablingEnabled%3e%0d%0a++++++%3cRequiresValidation%3efalse%3c%2fRequiresValidation%3e%0d%0a++++++%3cIsRequired%3efalse%3c%2fIsRequired%3e%0d%0a++++++%3cType%3eCheck+Box%3c%2fType%3e%0d%0a++++++%3cDefaultValue%3eNo%3c%2fDefaultValue%3e%0d%0a++++++%3cValueType+%2f%3e%0d%0a++++%3c%2fCells%3e%0d%0a++++%3cCells%3e%0d%0a++++++%3cAddress%3e%3d'Teacher+Weekly+Schedule'!%24F%2411%3c%2fAddress%3e%0d%0a++++++%3cListItemsAddress%3e%3d'Teacher+Weekly+Schedule'!%24V%245%3a%24V%246%3c%2fListItemsAddress%3e%0d%0a++++++%3cNameIndex%3e4%3c%2fNameIndex%3e%0d%0a++++++%3cIsHidingEnabled%3efalse%3c%2fIsHidingEnabled%3e%0d%0a++++++%3cIsDisablingEnabled%3efalse%3c%2fIsDisablingEnabled%3e%0d%0a++++++%3cRequiresValidation%3efalse%3c%2fRequiresValidation%3e%0d%0a++++++%3cIsRequired%3efalse%3c%2fIsRequired%3e%0d%0a++++++%3cType%3eCheck+Box%3c%2fType%3e%0d%0a++++++%3cDefaultValue%3eNo%3c%2fDefaultValue%3e%0d%0a++++++%3cValueType+%2f%3e%0d%0a++++%3c%2fCells%3e%0d%0a++++%3cCells%3e%0d%0a++++++%3cAddress%3e%3d'Teacher+Weekly+Schedule'!%24F%2412%3c%2fAddress%3e%0d%0a++++++%3cListItemsAddress%3e%3d'Teacher+Weekly+Schedule'!%24V%245%3a%24V%246%3c%2fListItemsAddress%3e%0d%0a++++++%3cNameIndex%3e5%3c%2fNameIndex%3e%0d%0a++++++%3cIsHidingEnabled%3efalse%3c%2fIsHidingEnabled%3e%0d%0a++++++%3cIsDisablingEnabled%3efalse%3c%2fIsDisablingEnabled%3e%0d%0a++++++%3cRequiresValidation%3efalse%3c%2fRequiresValidation%3e%0d%0a++++++%3cIsRequired%3efalse%3c%2fIsRequire"}},{"$cut":{"chars":32761,"head":" c%2fCells%3e%0d%0a++++%3cCells%3e%0d%0a++++++%3cAddress%3e%3d'Teacher+Weekly+Schedule'!%24D%2410%3c%2fAddress%3e%0d%0a++++++%3cListItemsAddress+%2f%3e%0d%0a++++++%3cNameIndex%3e51%3c%2fNameIndex%3e%0d%0a++++++%3cIsHidingEnabled%3efalse%3c%2fIsHidingEnabled%3e%0d%0a++++++%3cIsDisablingEnabled%3efalse%3c%2fIsDisablingEnabled%3e%0d%0a++++++%3cRequiresValidation%3efalse%3c%2fRequiresValidation%3e%0d%0a++++++%3cIsRequired%3efalse%3c%2fIsRequired%3e%0d%0a++++++%3cType%3eText+Box%3c%2fType%3e%0d%0a++++++%3cDefaultValue+%2f%3e%0d%0a++++++%3cValueType+%2f%3e%0d%0a++++%3c%2fCells%3e%0d%0a++++%3cCells%3e%0d%0a++++++%3cAddress%3e%3d'Teacher+Weekly+Schedule'!%24E%2410%3c%2fAddress%3e%0d%0a++++++%3cListItemsAddress+%2f%3e%0d%0a++++++%3cNameIndex%3e52%3c%2fNameIndex%3e%0d%0a++++++%3cIsHidingEnabled%3efalse%3c%2fIsHidingEnabled%3e%0d%0a++++++%3cIsDisablingEnabled%3efalse%3c%2fIsDisablingEnabled%3e%0d%0a++++++%3cRequiresValidation%3efalse%3c%2fRequiresValidation%3e%0d%0a++++++%3cIsRequired%3efalse%3c%2fIsRequired%3e%0d%0a++++++%3cType%3eText+Box%3c%2fType%3e%0d%0a++++++%3cDefaultValue+%2f%3e%0d%0a++++++%3cValueType+%2f%3e%0d%0a++++%3c%2fCells%3e%0d%0a++++%3cCells%3e%0d%0a++++++%3cAddress%3e%3d'Teacher+Weekly+Schedule'!%24C%2411%3c%2fAddress%3e%0d%0a++++++%3cListItemsAddress+%2f%3e%0d%0a++++++%3cNameIndex%3e53%3c%2fNameIndex%3e%0d%0a++++++%3cIsHidingEnabled%3efalse%3c%2fIsHidingEnabled%3e%0d%0a++++++%3cIsDisablingEnabled%3efalse%3c%2fIsDisablingEnabled%3e%0d%0a++++++%3cRequiresValidation%3efalse%3c%2fRequiresValidation%3e%0d%0a++++++%3cIsRequired%3efalse%3c%2fIsRequired%3e%0d%0a++++++%3cType%3eText+Box%3c%2fType%3e%0d%0a++++++%3cDefaultValue+%2f%3e%0d%0a++++++%3cValueType+%2f%3e%0d%0a++++%3c%2fCells%3e%0d%0a++++%3cCells%3e%0d%0a++++++%3cAddress%3e%3d'Teacher+Weekly+Schedule'!%24D%2411%3c%2fAddress%3e%0d%0a++++++%3cListItemsAddress+%2f%3e%0d%0a++++++%3cNameIndex%3e54%3c%2fNameIndex%3e%0d%0a++++++%3cIsHidingEnabled%3efalse%3c%2fIsHidingEnabled%3e%0d%0a++++++%3cIsDisablingEnabled%3efalse%3c%2fIsDisablingEnabled%3e%0d%0a++++++%3cRequiresValidation%3efalse%3c%2fRequiresValidation%3e%0d%0a++++++%3cIsRequired%3efalse%3c%2fIsRequired%3e%0d%0a++++++%3cType%3eText+Box%3c%2fType%3e%0d%0a++++++%3cDefaultValue+%2f%3e%0d%0a++++++%3cValueType+%2f%3e%0d%0a++++%3c%2fCells%3e%0d%0a++++%3cCells%3e%0d%0a++++++%3cAddress%3e%3d'Teacher+Weekly+Schedule'!%24E%2411%3c%2fAddress%3e%0d%0a++++++%3cListItemsAddress+%2f%3e%0d%0a++++++%3cNameIndex%3e55%3c%2fNameIndex%3e%0d%0a++++++%3cIsHidingEnabled%3efalse%3c%2fIsHidingEnabled%3e%0d%0a++++++%3cIsDisablingEnabled%3efalse%3c%2fIsDisablingEnabled%3e%0d%0a++++++%3cRequiresValidation%3efalse%3c%2fRequiresValidation%3e%0d%0a++++++%3cIsRequired%3efalse%3c%2fIsRequired%3e%0d%0a++++++%3cType%3eText+Box%3c%2fType%3e%0d%0a++++++%3cDefaultValue+%2f%3e%0d%0a++++++%3cValueType+%2f%3e%0d%0a++++%3c%2fCells%3e%0d%0a++++%3cCells%3e%0d%0a++++++%3cAddress%3e%3d'Teacher+Weekly+Schedule'!%24C%2412%3c%2fAddress%3e%0d%0a++++++%3cListItemsAddress+%2f%3e%0d%0a++++++%3cNameIndex%3e56%3c%2fNameIndex%3e%0d%0a++++++%3cIsHidingEnabled%3efalse%3c%2fIsHidingEnabled%3e%0d%0a++++++%3cIsDisablingEnabled%3efalse%3c%2fIsDisablingEnabled%3e%0d%0a++++++%3cRequiresValidation%3efalse%3c%2fRequiresValidation%3e%0d%0a++++++%3cIsRequired%3efalse%3c%2fIsRequired%3e%0d%0a++++++%3cType%3eText+Box%3c%2fType%3e%0d%0a++++++%3cDefaultValue+%2f%3e%0d%0a++++++%3cValueType+%2f%3e%0d%0a++++%3c%2fCells%3e%0d%0a++++%3cCells%3e%0d%0a++++++%3cAddress%3e%3d'Teacher+Weekly+Schedule'!%24D%2412%3c%2fAddress%3e%0d%0a++++++%3cListItemsAddress+%2f%3e%0d%0a++++++%3cNameIndex%3e57%3c%2fNameIndex%3e%0d%0a++++++%3cIsHidingEnabled%3efalse%3c%2fIsHidingEnabled%3e%0d%0a++++++%3cIsDisablingEnabled%3efalse%3c%2fIsDisablingEnabled%3e%0d%0a++++++%3cRequiresValidation%3efalse%3c%2fRequiresValidation%3e%0d%0a++++++%3cIsRequired%3efalse%3c%2fIsRequired%3e%0d%0a++++++%3cType%3eText+Box%3c%2fType%3e%0d%0a++++++%3cDefaultValue+%2f%3e%0d%0a++++++%3cValueType+%2f%3e%0d%0a++++%3c%2fCells%3e%0d%0a++++%3cCells%3e%0d%0a++++++%3cAddress%3e%3d'Teacher+Weekly+Schedule'!%24E%2412%3c%2fAddress%3e%0d%0a++++++%3"}},{"$cut":{"chars":29722,"head":" %0a++++++%3cType%3eText+Box%3c%2fType%3e%0d%0a++++++%3cDefaultValue+%2f%3e%0d%0a++++++%3cValueType+%2f%3e%0d%0a++++%3c%2fCells%3e%0d%0a++++%3cCells%3e%0d%0a++++++%3cAddress%3e%3d'Teacher+Weekly+Schedule'!%24Q%2413%3c%2fAddress%3e%0d%0a++++++%3cListItemsAddress+%2f%3e%0d%0a++++++%3cNameIndex%3e109%3c%2fNameIndex%3e%0d%0a++++++%3cIsHidingEnabled%3efalse%3c%2fIsHidingEnabled%3e%0d%0a++++++%3cIsDisablingEnabled%3efalse%3c%2fIsDisablingEnabled%3e%0d%0a++++++%3cRequiresValidation%3efalse%3c%2fRequiresValidation%3e%0d%0a++++++%3cIsRequired%3efalse%3c%2fIsRequired%3e%0d%0a++++++%3cType%3eText+Box%3c%2fType%3e%0d%0a++++++%3cDefaultValue+%2f%3e%0d%0a++++++%3cValueType+%2f%3e%0d%0a++++%3c%2fCells%3e%0d%0a++++%3cCells%3e%0d%0a++++++%3cAddress%3e%3d'Teacher+Weekly+Schedule'!%24O%2414%3c%2fAddress%3e%0d%0a++++++%3cListItemsAddress+%2f%3e%0d%0a++++++%3cNameIndex%3e110%3c%2fNameIndex%3e%0d%0a++++++%3cIsHidingEnabled%3efalse%3c%2fIsHidingEnabled%3e%0d%0a++++++%3cIsDisablingEnabled%3efalse%3c%2fIsDisablingEnabled%3e%0d%0a++++++%3cRequiresValidation%3efalse%3c%2fRequiresValidation%3e%0d%0a++++++%3cIsRequired%3efalse%3c%2fIsRequired%3e%0d%0a++++++%3cType%3eText+Box%3c%2fType%3e%0d%0a++++++%3cDefaultValue+%2f%3e%0d%0a++++++%3cValueType+%2f%3e%0d%0a++++%3c%2fCells%3e%0d%0a++++%3cCells%3e%0d%0a++++++%3cAddress%3e%3d'Teacher+Weekly+Schedule'!%24P%2414%3c%2fAddress%3e%0d%0a++++++%3cListItemsAddress+%2f%3e%0d%0a++++++%3cNameIndex%3e111%3c%2fNameIndex%3e%0d%0a++++++%3cIsHidingEnabled%3efalse%3c%2fIsHidingEnabled%3e%0d%0a++++++%3cIsDisablingEnabled%3efalse%3c%2fIsDisablingEnabled%3e%0d%0a++++++%3cRequiresValidation%3efalse%3c%2fRequiresValidation%3e%0d%0a++++++%3cIsRequired%3efalse%3c%2fIsRequired%3e%0d%0a++++++%3cType%3eText+Box%3c%2fType%3e%0d%0a++++++%3cDefaultValue+%2f%3e%0d%0a++++++%3cValueType+%2f%3e%0d%0a++++%3c%2fCells%3e%0d%0a++++%3cCells%3e%0d%0a++++++%3cAddress%3e%3d'Teacher+Weekly+Schedule'!%24Q%2414%3c%2fAddress%3e%0d%0a++++++%3cListItemsAddress+%2f%3e%0d%0a++++++%3cNameIndex%3e112%3c%2fNameIndex%3e%0d%0a++++++%3cIsHidingEnabled%3efalse%3c%2fIsHidingEnabled%3e%0d%0a++++++%3cIsDisablingEnabled%3efalse%3c%2fIsDisablingEnabled%3e%0d%0a++++++%3cRequiresValidation%3efalse%3c%2fRequiresValidation%3e%0d%0a++++++%3cIsRequired%3efalse%3c%2fIsRequired%3e%0d%0a++++++%3cType%3eText+Box%3c%2fType%3e%0d%0a++++++%3cDefaultValue+%2f%3e%0d%0a++++++%3cValueType+%2f%3e%0d%0a++++%3c%2fCells%3e%0d%0a++++%3cCells%3e%0d%0a++++++%3cAddress%3e%3d'Teacher+Weekly+Schedule'!%24C%2418%3c%2fAddress%3e%0d%0a++++++%3cListItemsAddress+%2f%3e%0d%0a++++++%3cNameIndex%3e113%3c%2fNameIndex%3e%0d%0a++++++%3cIsHidingEnabled%3efalse%3c%2fIsHidingEnabled%3e%0d%0a++++++%3cIsDisablingEnabled%3efalse%3c%2fIsDisablingEnabled%3e%0d%0a++++++%3cRequiresValidation%3efalse%3c%2fRequiresValidation%3e%0d%0a++++++%3cIsRequired%3efalse%3c%2fIsRequired%3e%0d%0a++++++%3cType%3eText+Box%3c%2fType%3e%0d%0a++++++%3cDefaultValue+%2f%3e%0d%0a++++++%3cValueType+%2f%3e%0d%0a++++%3c%2fCells%3e%0d%0a++++%3cCells%3e%0d%0a++++++%3cAddress%3e%3d'Teacher+Weekly+Schedule'!%24D%2418%3c%2fAddress%3e%0d%0a++++++%3cListItemsAddress+%2f%3e%0d%0a++++++%3cNameIndex%3e114%3c%2fNameIndex%3e%0d%0a++++++%3cIsHidingEnabled%3efalse%3c%2fIsHidingEnabled%3e%0d%0a++++++%3cIsDisablingEnabled%3efalse%3c%2fIsDisablingEnabled%3e%0d%0a++++++%3cRequiresValidation%3efalse%3c%2fRequiresValidation%3e%0d%0a++++++%3cIsRequired%3efalse%3c%2fIsRequired%3e%0d%0a++++++%3cType%3eText+Box%3c%2fType%3e%0d%0a++++++%3cDefaultValue+%2f%3e%0d%0a++++++%3cValueType+%2f%3e%0d%0a++++%3c%2fCells%3e%0d%0a++++%3cCells%3e%0d%0a++++++%3cAddress%3e%3d'Teacher+Weekly+Schedule'!%24E%2418%3c%2fAddress%3e%0d%0a++++++%3cListItemsAddress+%2f%3e%0d%0a++++++%3cNameIndex%3e115%3c%2fNameIndex%3e%0d%0a++++++%3cIsHidingEnabled%3efalse%3c%2fIsHidingEnabled%3e%0d%0a++++++%3cIsDisablingEnabled%3efalse%3c%2fIsDisablingEnabled%3e%0d%0a++++++%3cRequiresValidation%3efalse%3c%2fRequiresValidation%3e%0d%0a++++++%3cIsRequired%3efalse%3c%2fIsRequired%3e%0d%0a++++++%3cType%3eText+Box%3c%2fType%3e%0d%0a++++++%3cDefaultValue+%2f%3e%0d%0a++++++%3cValueType+%2f%3e%0d%0a++++%3c%"}}]
[{"$cut":{"chars":32761,"head":" %3c%3fxml+version%3d%221.0%22+encoding%3d%22utf-16%22%3f%3e%0d%0a%3cTables+xmlns%3axsi%3d%22http%3a%2f%2fwww.w3.org%2f2001%2fXMLSchema-instance%22+xmlns%3axsd%3d%22http%3a%2f%2fwww.w3.org%2f2001%2fXMLSchema%22+InputPrefix%3d%22PSWInput_%22%3e%0d%0a++%3cTable+Name%3d%22PSWOutput_0%22+ColumnWidths%3d%2238.25-18.75-27-57-91.5-31.5-24.75-18.75-36.75-36.75-91.5-31.5-24.75-18.75-36.75-36.75-91.5-31.5-21.75%22+RowCount%3d%2226%22+Width%3d%22765.75%22+InputPrefix%3d%22PSWInput_%22%3e%0d%0a++++%3cTR%3e%0d%0a++++++%3cTD+Style%3d%22Class42%22+Merge%3d%22False%22+RowSpan%3d%22%22+ColSpan%3d%22%22+Format%3d%22General%22+Width%3d%2238.25%22+Text%3d%22%22+Height%3d%2215%22+Align%3d%22Left%22+CellHasFormula%3d%22False%22+FontName%3d%22Calibri%22+WrapText%3d%22False%22+FontSize%3d%2211%22+X%3d%221%22+Y%3d%221%22+%2f%3e%0d%0a++++++%3cTD+Style%3d%22Class42%22+Merge%3d%22False%22+RowSpan%3d%22%22+ColSpan%3d%22%22+Format%3d%22General%22+Width%3d%2218.75%22+Text%3d%22%22+Height%3d%2215%22+Align%3d%22Left%22+CellHasFormula%3d%22False%22+FontName%3d%22Calibri%22+WrapText%3d%22False%22+FontSize%3d%2211%22+X%3d%222%22+Y%3d%221%22+%2f%3e%0d%0a++++++%3cTD+Style%3d%22Class42%22+Merge%3d%22False%22+RowSpan%3d%22%22+ColSpan%3d%22%22+Format%3d%22General%22+Width%3d%2227%22+Text%3d%22%22+Height%3d%2215%22+Align%3d%22Left%22+CellHasFormula%3d%22False%22+FontName%3d%22Calibri%22+WrapText%3d%22False%22+FontSize%3d%2211%22+X%3d%223%22+Y%3d%221%22+%2f%3e%0d%0a++++++%3cTD+Style%3d%22Class42%22+Merge%3d%22False%22+RowSpan%3d%22%22+ColSpan%3d%22%22+Format%3d%22General%22+Width%3d%2257%22+Text%3d%22%22+Height%3d%2215%22+Align%3d%22Left%22+CellHasFormula%3d%22False%22+FontName%3d%22Calibri%22+WrapText%3d%22False%22+FontSize%3d%2211%22+X%3d%224%22+Y%3d%221%22+%2f%3e%0d%0a++++++%3cTD+Style%3d%22Class42%22+Merge%3d%22False%22+RowSpan%3d%22%22+ColSpan%3d%22%22+Format%3d%22General%22+Width%3d%2291.5%22+Text%3d%22%22+Height%3d%2215%22+Align%3d%22Left%22+CellHasFormula%3d%22False%22+FontName%3d%22Calibri%22+WrapText%3d%22False%22+FontSize%3d%2211%22+X%3d%225%22+Y%3d%221%22+%2f%3e%0d%0a++++++%3cTD+Style%3d%22Class42%22+Merge%3d%22False%22+RowSpan%3d%22%22+ColSpan%3d%22%22+Format%3d%22General%22+Width%3d%2231.5%22+Text%3d%22%22+Height%3d%2215%22+Align%3d%22Left%22+CellHasFormula%3d%22False%22+FontName%3d%22Calibri%22+WrapText%3d%22False%22+FontSize%3d%2211%22+X%3d%226%22+Y%3d%221%22+%2f%3e%0d%0a++++++%3cTD+Style%3d%22Class42%22+Merge%3d%22False%22+RowSpan%3d%22%22+ColSpan%3d%22%22+Format%3d%22General%22+Width%3d%2224.75%22+Text%3d%22%22+Height%3d%2215%22+Align%3d%22Left%22+CellHasFormula%3d%22False%22+FontName%3d%22Calibri%22+WrapText%3d%22False%22+FontSize%3d%2211%22+X%3d%227%22+Y%3d%221%22+%2f%3e%0d%0a++++++%3cTD+Style%3d%22Class42%22+Merge%3d%22False%22+RowSpan%3d%22%22+ColSpan%3d%22%22+Format%3d%22General%22+Width%3d%2218.75%22+Text%3d%22%22+Height%3d%2215%22+Align%3d%22Left%22+CellHasFormula%3d%22False%22+FontName%3d%22Calibri%22+WrapText%3d%22False%22+FontSize%3d%2211%22+X%3d%228%22+Y%3d%221%22+%2f%3e%0d%0a++++++%3cTD+Style%3d%22Class42%22+Merge%3d%22False%22+RowSpan%3d%22%22+ColSpan%3d%22%22+Format%3d%22General%22+Width%3d%2236.75%22+Text%3d%22%22+Height%3d%2215%22+Align%3d%22Left%22+CellHasFormula%3d%22False%22+FontName%3d%22Calibri%22+WrapText%3d%22False%22+FontSize%3d%2211%22+X%3d%229%22+Y%3d%221%22+%2f%3e%0d%0a++++++%3cTD+Style%3d%22Class42%22+Merge%3d%22False%22+RowSpan%3d%22%22+ColSpan%3d%22%22+Format%3d%22General%22+Width%3d%2236.75%22+Text%3d%22%22+Height%3d%2215%22+Align%3d%22Left%22+CellHasFormula%3d%22False%22+FontName%3d%22Calibri%22+WrapText%3d%22False%22+FontSize%3d%2211%22+X%3d%2210%22+Y%3d%221%22+%2f%3e%0d%0a++++++%3cTD+Style%3d%22Class42%22+Merge%3d%22False%22+RowSpan%3d%22%22+ColSpan%3d%22%22+Format%3d%22General%22+Width%3d%2291.5%22+Text%3d%22%22+Height%3d%2215%22+Align%3d%22Left%22+CellHasFormula%3d%22False%22+FontName%3d%22Calibri%22+WrapText%3d%22False%22+FontSize%3d%2211%22+X%3d%2211%22+Y%3d%221%22+%2f%3e%0d%0a++++++%3cTD+Style%3d%22Class42%22+Merge%3d%22False%22+RowSpan%3d%22%22+ColSpan%3d%22%22+Format%3d%22General%22+Width%3d%2231.5%22+Tex"}},{"$cut":{"chars":32761,"head":" %3d%22%22+Format%3d%22General%22+Width%3d%2291.5%22+Text%3d%22%22+Height%3d%2215%22+Align%3d%22Left%22+CellHasFormula%3d%22False%22+FontName%3d%22Calibri%22+WrapText%3d%22False%22+FontSize%3d%2210%22+X%3d%2211%22+Y%3d%227%22%3e%0d%0a++++++++%3cInputCell%3e%0d%0a++++++++++%3cAddress%3e%3d'Teacher+Weekly+Schedule'!%24K%247%3c%2fAddress%3e%0d%0a++++++++++%3cListItemsAddress+%2f%3e%0d%0a++++++++++%3cNameIndex%3e67%3c%2fNameIndex%3e%0d%0a++++++++++%3cIsHidingEnabled%3efalse%3c%2fIsHidingEnabled%3e%0d%0a++++++++++%3cIsDisablingEnabled%3efalse%3c%2fIsDisablingEnabled%3e%0d%0a++++++++++%3cRequiresValidation%3efalse%3c%2fRequiresValidation%3e%0d%0a++++++++++%3cIsRequired%3efalse%3c%2fIsRequired%3e%0d%0a++++++++++%3cType%3eText+Box%3c%2fType%3e%0d%0a++++++++++%3cDefaultValue+%2f%3e%0d%0a++++++++++%3cValueType+%2f%3e%0d%0a++++++++%3c%2fInputCell%3e%0d%0a++++++%3c%2fTD%3e%0d%0a++++++%3cTD+Style%3d%22Class61%22+Merge%3d%22False%22+RowSpan%3d%22%22+ColSpan%3d%22%22+Format%3d%22General%22+Width%3d%2231.5%22+Text%3d%22%22+Height%3d%2215%22+Align%3d%22Left%22+CellHasFormula%3d%22False%22+FontName%3d%22Calibri%22+WrapText%3d%22False%22+FontSize%3d%229%22+X%3d%2212%22+Y%3d%227%22%3e%0d%0a++++++++%3cInputCell%3e%0d%0a++++++++++%3cAddress%3e%3d'Teacher+Weekly+Schedule'!%24L%247%3c%2fAddress%3e%0d%0a++++++++++%3cListItemsAddress%3e%3d'Teacher+Weekly+Schedule'!%24V%245%3a%24V%246%3c%2fListItemsAddress%3e%0d%0a++++++++++%3cNameIndex%3e8%3c%2fNameIndex%3e%0d%0a++++++++++%3cIsHidingEnabled%3efalse%3c%2fIsHidingEnabled%3e%0d%0a++++++++++%3cIsDisablingEnabled%3efalse%3c%2fIsDisablingEnabled%3e%0d%0a++++++++++%3cRequiresValidation%3efalse%3c%2fRequiresValidation%3e%0d%0a++++++++++%3cIsRequired%3efalse%3c%2fIsRequired%3e%0d%0a++++++++++%3cType%3eCheck+Box%3c%2fType%3e%0d%0a++++++++++%3cDefaultValue%3eNo%3c%2fDefaultValue%3e%0d%0a++++++++++%3cValueType+%2f%3e%0d%0a++++++++%3c%2fInputCell%3e%0d%0a++++++%3c%2fTD%3e%0d%0a++++++%3cTD+Style%3d%22Class62%22+Merge%3d%22False%22+RowSpan%3d%22%22+ColSpan%3d%22%22+Format%3d%22General%22+Width%3d%2224.75%22+Text%3d%22%22+Height%3d%2215%22+Align%3d%22Left%22+CellHasFormula%3d%22True%22+FontName%3d%22Calibri%22+WrapText%3d%22False%22+FontSize%3d%229%22+X%3d%2213%22+Y%3d%227%22+%2f%3e%0d%0a++++++%3cTD+Style%3d%22Class59%22+Merge%3d%22False%22+RowSpan%3d%22%22+ColSpan%3d%22%22+Format%3d%22General%22+Width%3d%2218.75%22+Text%3d%221%22+Height%3d%2215%22+Align%3d%22Center%22+CellHasFormula%3d%22False%22+FontName%3d%22Calibri%22+WrapText%3d%22False%22+FontSize%3d%2210%22+X%3d%2214%22+Y%3d%227%22+%2f%3e%0d%0a++++++%3cTD+Style%3d%22Class60%22+Merge%3d%22False%22+RowSpan%3d%22%22+ColSpan%3d%22%22+Format%3d%22General%22+Width%3d%2236.75%22+Text%3d%22%22+Height%3d%2215%22+Align%3d%22Left%22+CellHasFormula%3d%22False%22+FontName%3d%22Calibri%22+WrapText%3d%22False%22+FontSize%3d%2210%22+X%3d%2215%22+Y%3d%227%22%3e%0d%0a++++++++%3cInputCell%3e%0d%0a++++++++++%3cAddress%3e%3d'Teacher+Weekly+Schedule'!%24O%247%3c%2fAddress%3e%0d%0a++++++++++%3cListItemsAddress+%2f%3e%0d%0a++++++++++%3cNameIndex%3e89%3c%2fNameIndex%3e%0d%0a++++++++++%3cIsHidingEnabled%3efalse%3c%2fIsHidingEnabled%3e%0d%0a++++++++++%3cIsDisablingEnabled%3efalse%3c%2fIsDisablingEnabled%3e%0d%0a++++++++++%3cRequiresValidation%3efalse%3c%2fRequiresValidation%3e%0d%0a++++++++++%3cIsRequired%3efalse%3c%2fIsRequired%3e%0d%0a++++++++++%3cType%3eText+Box%3c%2fType%3e%0d%0a++++++++++%3cDefaultValue+%2f%3e%0d%0a++++++++++%3cValueType+%2f%3e%0d%0a++++++++%3c%2fInputCell%3e%0d%0a++++++%3c%2fTD%3e%0d%0a++++++%3cTD+Style%3d%22Class60%22+Merge%3d%22False%22+RowSpan%3d%22%22+ColSpan%3d%22%22+Format%3d%22General%22+Width%3d%2236.75%22+Text%3d%22%22+Height%3d%2215%22+Align%3d%22Left%22+CellHasFormula%3d%22False%22+FontName%3d%22Calibri%22+WrapText%3d%22False%22+FontSize%3d%2210%22+X%3d%2216%22+Y%3d%227%22%3e%0d%0a++++++++%3cInputCell%3e%0d%0a++++++++++%3cAddress%3e%3d'Teacher+Weekly+Schedule'!%24P%247%3c%2fAddress%3e%0d%0a++++++++++%3cListItemsAddress+%2f%3e%0d%0a++++++++++%3cNameIndex%3e90%3c%2fNameIndex%3e%0d%0a++++++++++%3cIsHidingEnabled%3efalse%3c%2fIsHidingEnabled%3e%0d%0a++"}},{"$cut":{"chars":32761,"head":" 0d%0a++++++++++%3cAddress%3e%3d'Teacher+Weekly+Schedule'!%24Q%249%3c%2fAddress%3e%0d%0a++++++++++%3cListItemsAddress+%2f%3e%0d%0a++++++++++%3cNameIndex%3e97%3c%2fNameIndex%3e%0d%0a++++++++++%3cIsHidingEnabled%3efalse%3c%2fIsHidingEnabled%3e%0d%0a++++++++++%3cIsDisablingEnabled%3efalse%3c%2fIsDisablingEnabled%3e%0d%0a++++++++++%3cRequiresValidation%3efalse%3c%2fRequiresValidation%3e%0d%0a++++++++++%3cIsRequired%3efalse%3c%2fIsRequired%3e%0d%0a++++++++++%3cType%3eText+Box%3c%2fType%3e%0d%0a++++++++++%3cDefaultValue+%2f%3e%0d%0a++++++++++%3cValueType+%2f%3e%0d%0a++++++++%3c%2fInputCell%3e%0d%0a++++++%3c%2fTD%3e%0d%0a++++++%3cTD+Style%3d%22Class66%22+Merge%3d%22False%22+RowSpan%3d%22%22+ColSpan%3d%22%22+Format%3d%22General%22+Width%3d%2231.5%22+Text%3d%22%22+Height%3d%2215%22+Align%3d%22Left%22+CellHasFormula%3d%22False%22+FontName%3d%22Calibri%22+WrapText%3d%22False%22+FontSize%3d%229%22+X%3d%2218%22+Y%3d%229%22%3e%0d%0a++++++++%3cInputCell%3e%0d%0a++++++++++%3cAddress%3e%3d'Teacher+Weekly+Schedule'!%24R%249%3c%2fAddress%3e%0d%0a++++++++++%3cListItemsAddress%3e%3d'Teacher+Weekly+Schedule'!%24V%245%3a%24V%246%3c%2fListItemsAddress%3e%0d%0a++++++++++%3cNameIndex%3e18%3c%2fNameIndex%3e%0d%0a++++++++++%3cIsHidingEnabled%3efalse%3c%2fIsHidingEnabled%3e%0d%0a++++++++++%3cIsDisablingEnabled%3efalse%3c%2fIsDisablingEnabled%3e%0d%0a++++++++++%3cRequiresValidation%3efalse%3c%2fRequiresValidation%3e%0d%0a++++++++++%3cIsRequired%3efalse%3c%2fIsRequired%3e%0d%0a++++++++++%3cType%3eCheck+Box%3c%2fType%3e%0d%0a++++++++++%3cDefaultValue%3eNo%3c%2fDefaultValue%3e%0d%0a++++++++++%3cValueType+%2f%3e%0d%0a++++++++%3c%2fInputCell%3e%0d%0a++++++%3c%2fTD%3e%0d%0a++++++%3cTD+Style%3d%22Class63%22+Merge%3d%22False%22+RowSpan%3d%22%22+ColSpan%3d%22%22+Format%3d%22General%22+Width%3d%2221.75%22+Text%3d%22%22+Height%3d%2215%22+Align%3d%22Left%22+CellHasFormula%3d%22True%22+FontName%3d%22Calibri%22+WrapText%3d%22False%22+FontSize%3d%229%22+X%3d%2219%22+Y%3d%229%22+%2f%3e%0d%0a++++%3c%2fTR%3e%0d%0a++++%3cTR%3e%0d%0a++++++%3cTD+Style%3d%22Class51%22+Merge%3d%22False%22+RowSpan%3d%22%22+ColSpan%3d%22%22+Format%3d%22General%22+Width%3d%2238.25%22+Text%3d%22%22+Height%3d%2215%22+Align%3d%22Left%22+CellHasFormula%3d%22False%22+FontName%3d%22Calibri%22+WrapText%3d%22False%22+FontSize%3d%229%22+X%3d%221%22+Y%3d%2210%22+%2f%3e%0d%0a++++++%3cTD+Style%3d%22Class64%22+Merge%3d%22False%22+RowSpan%3d%22%22+ColSpan%3d%22%22+Format%3d%22General%22+Width%3d%2218.75%22+Text%3d%224%22+Height%3d%2215%22+Align%3d%22Center%22+CellHasFormula%3d%22False%22+FontName%3d%22Calibri%22+WrapText%3d%22False%22+FontSize%3d%2210%22+X%3d%222%22+Y%3d%2210%22+%2f%3e%0d%0a++++++%3cTD+Style%3d%22Class65%22+Merge%3d%22False%22+RowSpan%3d%22%22+ColSpan%3d%22%22+Format%3d%22General%22+Width%3d%2227%22+Text%3d%22%22+Height%3d%2215%22+Align%3d%22Left%22+CellHasFormula%3d%22False%22+FontName%3d%22Calibri%22+WrapText%3d%22False%22+FontSize%3d%2210%22+X%3d%223%22+Y%3d%2210%22%3e%0d%0a++++++++%3cInputCell%3e%0d%0a++++++++++%3cAddress%3e%3d'Teacher+Weekly+Schedule'!%24C%2410%3c%2fAddress%3e%0d%0a++++++++++%3cListItemsAddress+%2f%3e%0d%0a++++++++++%3cNameIndex%3e50%3c%2fNameIndex%3e%0d%0a++++++++++%3cIsHidingEnabled%3efalse%3c%2fIsHidingEnabled%3e%0d%0a++++++++++%3cIsDisablingEnabled%3efalse%3c%2fIsDisablingEnabled%3e%0d%0a++++++++++%3cRequiresValidation%3efalse%3c%2fRequiresValidation%3e%0d%0a++++++++++%3cIsRequired%3efalse%3c%2fIsRequired%3e%0d%0a++++++++++%3cType%3eText+Box%3c%2fType%3e%0d%0a++++++++++%3cDefaultValue+%2f%3e%0d%0a++++++++++%3cValueType+%2f%3e%0d%0a++++++++%3c%2fInputCell%3e%0d%0a++++++%3c%2fTD%3e%0d%0a++++++%3cTD+Style%3d%22Class65%22+Merge%3d%22False%22+RowSpan%3d%22%22+ColSpan%3d%22%22+Format%3d%22General%22+Width%3d%2257%22+Text%3d%22%22+Height%3d%2215%22+Align%3d%22Left%22+CellHasFormula%3d%22False%22+FontName%3d%22Calibri%22+WrapText%3d%22False%22+FontSize%3d%2210%22+X%3d%224%22+Y%3d%2210%22%3e%0d%0a++++++++%3cInputCell%3e%0d%0a++++++++++%3cAddress%3e%3d'Teacher+Weekly+Schedule'!%24D%2410%3c%2fAddress%3e%0d%0a++++++++++%3cListItemsAddress+%2f%3e%0d%0a++++++++++%3cNameIndex%3e"}},{"$cut":{"chars":32761,"head":" eft%22+CellHasFormula%3d%22False%22+FontName%3d%22Calibri%22+WrapText%3d%22False%22+FontSize%3d%2210%22+X%3d%225%22+Y%3d%2212%22%3e%0d%0a++++++++%3cInputCell%3e%0d%0a++++++++++%3cAddress%3e%3d'Teacher+Weekly+Schedule'!%24E%2412%3c%2fAddress%3e%0d%0a++++++++++%3cListItemsAddress+%2f%3e%0d%0a++++++++++%3cNameIndex%3e58%3c%2fNameIndex%3e%0d%0a++++++++++%3cIsHidingEnabled%3efalse%3c%2fIsHidingEnabled%3e%0d%0a++++++++++%3cIsDisablingEnabled%3efalse%3c%2fIsDisablingEnabled%3e%0d%0a++++++++++%3cRequiresValidation%3efalse%3c%2fRequiresValidation%3e%0d%0a++++++++++%3cIsRequired%3efalse%3c%2fIsRequired%3e%0d%0a++++++++++%3cType%3eText+Box%3c%2fType%3e%0d%0a++++++++++%3cDefaultValue+%2f%3e%0d%0a++++++++++%3cValueType+%2f%3e%0d%0a++++++++%3c%2fInputCell%3e%0d%0a++++++%3c%2fTD%3e%0d%0a++++++%3cTD+Style%3d%22Class66%22+Merge%3d%22False%22+RowSpan%3d%22%22+ColSpan%3d%22%22+Format%3d%22General%22+Width%3d%2231.5%22+Text%3d%22%22+Height%3d%2215%22+Align%3d%22Left%22+CellHasFormula%3d%22False%22+FontName%3d%22Calibri%22+WrapText%3d%22False%22+FontSize%3d%229%22+X%3d%226%22+Y%3d%2212%22%3e%0d%0a++++++++%3cInputCell%3e%0d%0a++++++++++%3cAddress%3e%3d'Teacher+Weekly+Schedule'!%24F%2412%3c%2fAddress%3e%0d%0a++++++++++%3cListItemsAddress%3e%3d'Teacher+Weekly+Schedule'!%24V%245%3a%24V%246%3c%2fListItemsAddress%3e%0d%0a++++++++++%3cNameIndex%3e5%3c%2fNameIndex%3e%0d%0a++++++++++%3cIsHidingEnabled%3efalse%3c%2fIsHidingEnabled%3e%0d%0a++++++++++%3cIsDisablingEnabled%3efalse%3c%2fIsDisablingEnabled%3e%0d%0a++++++++++%3cRequiresValidation%3efalse%3c%2fRequiresValidation%3e%0d%0a++++++++++%3cIsRequired%3efalse%3c%2fIsRequired%3e%0d%0a++++++++++%3cType%3eCheck+Box%3c%2fType%3e%0d%0a++++++++++%3cDefaultValue%3eNo%3c%2fDefaultValue%3e%0d%0a++++++++++%3cValueType+%2f%3e%0d%0a++++++++%3c%2fInputCell%3e%0d%0a++++++%3c%2fTD%3e%0d%0a++++++%3cTD+Style%3d%22Class62%22+Merge%3d%22False%22+RowSpan%3d%22%22+ColSpan%3d%22%22+Format%3d%22General%22+Width%3d%2224.75%22+Text%3d%22%22+Height%3d%2215%22+Align%3d%22Left%22+CellHasFormula%3d%22True%22+FontName%3d%22Calibri%22+WrapText%3d%22False%22+FontSize%3d%229%22+X%3d%227%22+Y%3d%2212%22+%2f%3e%0d%0a++++++%3cTD+Style%3d%22Class64%22+Merge%3d%22False%22+RowSpan%3d%22%22+ColSpan%3d%22%22+Format%3d%22General%22+Width%3d%2218.75%22+Text%3d%226%22+Height%3d%2215%22+Align%3d%22Center%22+CellHasFormula%3d%22False%22+FontName%3d%22Calibri%22+WrapText%3d%22False%22+FontSize%3d%2210%22+X%3d%228%22+Y%3d%2212%22+%2f%3e%0d%0a++++++%3cTD+Style%3d%22Class65%22+Merge%3d%22False%22+RowSpan%3d%22%22+ColSpan%3d%22%22+Format%3d%22General%22+Width%3d%2236.75%22+Text%3d%22%22+Height%3d%2215%22+Align%3d%22Left%22+CellHasFormula%3d%22False%22+FontName%3d%22Calibri%22+WrapText%3d%22False%22+FontSize%3d%2210%22+X%3d%229%22+Y%3d%2212%22%3e%0d%0a++++++++%3cInputCell%3e%0d%0a++++++++++%3cAddress%3e%3d'Teacher+Weekly+Schedule'!%24I%2412%3c%2fAddress%3e%0d%0a++++++++++%3cListItemsAddress+%2f%3e%0d%0a++++++++++%3cNameIndex%3e80%3c%2fNameIndex%3e%0d%0a++++++++++%3cIsHidingEnabled%3efalse%3c%2fIsHidingEnabled%3e%0d%0a++++++++++%3cIsDisablingEnabled%3efalse%3c%2fIsDisablingEnabled%3e%0d%0a++++++++++%3cRequiresValidation%3efalse%3c%2fRequiresValidation%3e%0d%0a++++++++++%3cIsRequired%3efalse%3c%2fIsRequired%3e%0d%0a++++++++++%3cType%3eText+Box%3c%2fType%3e%0d%0a++++++++++%3cDefaultValue+%2f%3e%0d%0a++++++++++%3cValueType+%2f%3e%0d%0a++++++++%3c%2fInputCell%3e%0d%0a++++++%3c%2fTD%3e%0d%0a++++++%3cTD+Style%3d%22Class65%22+Merge%3d%22False%22+RowSpan%3d%22%22+ColSpan%3d%22%22+Format%3d%22General%22+Width%3d%2236.75%22+Text%3d%22%22+Height%3d%2215%22+Align%3d%22Left%22+CellHasFormula%3d%22False%22+FontName%3d%22Calibri%22+WrapText%3d%22False%22+FontSize%3d%2210%22+X%3d%2210%22+Y%3d%2212%22%3e%0d%0a++++++++%3cInputCell%3e%0d%0a++++++++++%3cAddress%3e%3d'Teacher+Weekly+Schedule'!%24J%2412%3c%2fAddress%3e%0d%0a++++++++++%3cListItemsAddress+%2f%3e%0d%0a++++++++++%3cNameIndex%3e81%3c%2fNameIndex%3e%0d%0a++++++++++%3cIsHidingEnabled%3efalse%3c%2fIsHidingEnabled%3e%0d%0a++++++++++%3cIsDisablingEnabled%3efalse%3c%2fIsDisablingEnabled%3e%0d%0a++++++++++%3cRequires"}},{"$cut":{"chars":32761,"head":" ress%3e%3d'Teacher+Weekly+Schedule'!%24K%2414%3c%2fAddress%3e%0d%0a++++++++++%3cListItemsAddress+%2f%3e%0d%0a++++++++++%3cNameIndex%3e88%3c%2fNameIndex%3e%0d%0a++++++++++%3cIsHidingEnabled%3efalse%3c%2fIsHidingEnabled%3e%0d%0a++++++++++%3cIsDisablingEnabled%3efalse%3c%2fIsDisablingEnabled%3e%0d%0a++++++++++%3cRequiresValidation%3efalse%3c%2fRequiresValidation%3e%0d%0a++++++++++%3cIsRequired%3efalse%3c%2fIsRequired%3e%0d%0a++++++++++%3cType%3eText+Box%3c%2fType%3e%0d%0a++++++++++%3cDefaultValue+%2f%3e%0d%0a++++++++++%3cValueType+%2f%3e%0d%0a++++++++%3c%2fInputCell%3e%0d%0a++++++%3c%2fTD%3e%0d%0a++++++%3cTD+Style%3d%22Class69%22+Merge%3d%22False%22+RowSpan%3d%22%22+ColSpan%3d%22%22+Format%3d%22General%22+Width%3d%2231.5%22+Text%3d%22%22+Height%3d%2215%22+Align%3d%22Left%22+CellHasFormula%3d%22False%22+FontName%3d%22Calibri%22+WrapText%3d%22False%22+FontSize%3d%229%22+X%3d%2212%22+Y%3d%2214%22%3e%0d%0a++++++++%3cInputCell%3e%0d%0a++++++++++%3cAddress%3e%3d'Teacher+Weekly+Schedule'!%24L%2414%3c%2fAddress%3e%0d%0a++++++++++%3cListItemsAddress%3e%3d'Teacher+Weekly+Schedule'!%24V%245%3a%24V%246%3c%2fListItemsAddress%3e%0d%0a++++++++++%3cNameIndex%3e15%3c%2fNameIndex%3e%0d%0a++++++++++%3cIsHidingEnabled%3efalse%3c%2fIsHidingEnabled%3e%0d%0a++++++++++%3cIsDisablingEnabled%3efalse%3c%2fIsDisablingEnabled%3e%0d%0a++++++++++%3cRequiresValidation%3efalse%3c%2fRequiresValidation%3e%0d%0a++++++++++%3cIsRequired%3efalse%3c%2fIsRequired%3e%0d%0a++++++++++%3cType%3eCheck+Box%3c%2fType%3e%0d%0a++++++++++%3cDefaultValue%3eNo%3c%2fDefaultValue%3e%0d%0a++++++++++%3cValueType+%2f%3e%0d%0a++++++++%3c%2fInputCell%3e%0d%0a++++++%3c%2fTD%3e%0d%0a++++++%3cTD+Style%3d%22Class62%22+Merge%3d%22False%22+RowSpan%3d%22%22+ColSpan%3d%22%22+Format%3d%22General%22+Width%3d%2224.75%22+Text%3d%22%22+Height%3d%2215%22+Align%3d%22Left%22+CellHasFormula%3d%22True%22+FontName%3d%22Calibri%22+WrapText%3d%22False%22+FontSize%3d%229%22+X%3d%2213%22+Y%3d%2214%22+%2f%3e%0d%0a++++++%3cTD+Style%3d%22Class67%22+Merge%3d%22False%22+RowSpan%3d%22%22+ColSpan%3d%22%22+Format%3d%22General%22+Width%3d%2218.75%22+Text%3d%228%22+Height%3d%2215%22+Align%3d%22Center%22+CellHasFormula%3d%22False%22+FontName%3d%22Calibri%22+WrapText%3d%22False%22+FontSize%3d%2210%22+X%3d%2214%22+Y%3d%2214%22+%2f%3e%0d%0a++++++%3cTD+Style%3d%22Class68%22+Merge%3d%22False%22+RowSpan%3d%22%22+ColSpan%3d%22%22+Format%3d%22General%22+Width%3d%2236.75%22+Text%3d%22%22+Height%3d%2215%22+Align%3d%22Left%22+CellHasFormula%3d%22False%22+FontName%3d%22Calibri%22+WrapText%3d%22False%22+FontSize%3d%2210%22+X%3d%2215%22+Y%3d%2214%22%3e%0d%0a++++++++%3cInputCell%3e%0d%0a++++++++++%3cAddress%3e%3d'Teacher+Weekly+Schedule'!%24O%2414%3c%2fAddress%3e%0d%0a++++++++++%3cListItemsAddress+%2f%3e%0d%0a++++++++++%3cNameIndex%3e110%3c%2fNameIndex%3e%0d%0a++++++++++%3cIsHidingEnabled%3efalse%3c%2fIsHidingEnabled%3e%0d%0a++++++++++%3cIsDisablingEnabled%3efalse%3c%2fIsDisablingEnabled%3e%0d%0a++++++++++%3cRequiresValidation%3efalse%3c%2fRequiresValidation%3e%0d%0a++++++++++%3cIsRequired%3efalse%3c%2fIsRequired%3e%0d%0a++++++++++%3cType%3eText+Box%3c%2fType%3e%0d%0a++++++++++%3cDefaultValue+%2f%3e%0d%0a++++++++++%3cValueType+%2f%3e%0d%0a++++++++%3c%2fInputCell%3e%0d%0a++++++%3c%2fTD%3e%0d%0a++++++%3cTD+Style%3d%22Class68%22+Merge%3d%22False%22+RowSpan%3d%22%22+ColSpan%3d%22%22+Format%3d%22General%22+Width%3d%2236.75%22+Text%3d%22%22+Height%3d%2215%22+Align%3d%22Left%22+CellHasFormula%3d%22False%22+FontName%3d%22Calibri%22+WrapText%3d%22False%22+FontSize%3d%2210%22+X%3d%2216%22+Y%3d%2214%22%3e%0d%0a++++++++%3cInputCell%3e%0d%0a++++++++++%3cAddress%3e%3d'Teacher+Weekly+Schedule'!%24P%2414%3c%2fAddress%3e%0d%0a++++++++++%3cListItemsAddress+%2f%3e%0d%0a++++++++++%3cNameIndex%3e111%3c%2fNameIndex%3e%0d%0a++++++++++%3cIsHidingEnabled%3efalse%3c%2fIsHidingEnabled%3e%0d%0a++++++++++%3cIsDisablingEnabled%3efalse%3c%2fIsDisablingEnabled%3e%0d%0a++++++++++%3cRequiresValidation%3efalse%3c%2fRequiresValidation%3e%0d%0a++++++++++%3cIsRequired%3efalse%3c%2fIsRequired%3e%0d%0a++++++++++%3cType%3eText+Box%3c%2fType%3e%0d%0a++++++++++%3cDefaultV"}},{"$cut":{"chars":32761,"head":" e%3d%22Class65%22+Merge%3d%22False%22+RowSpan%3d%22%22+ColSpan%3d%22%22+Format%3d%22General%22+Width%3d%2257%22+Text%3d%22%22+Height%3d%2215%22+Align%3d%22Left%22+CellHasFormula%3d%22False%22+FontName%3d%22Calibri%22+WrapText%3d%22False%22+FontSize%3d%2210%22+X%3d%224%22+Y%3d%2219%22%3e%0d%0a++++++++%3cInputCell%3e%0d%0a++++++++++%3cAddress%3e%3d'Teacher+Weekly+Schedule'!%24D%2419%3c%2fAddress%3e%0d%0a++++++++++%3cListItemsAddress+%2f%3e%0d%0a++++++++++%3cNameIndex%3e117%3c%2fNameIndex%3e%0d%0a++++++++++%3cIsHidingEnabled%3efalse%3c%2fIsHidingEnabled%3e%0d%0a++++++++++%3cIsDisablingEnabled%3efalse%3c%2fIsDisablingEnabled%3e%0d%0a++++++++++%3cRequiresValidation%3efalse%3c%2fRequiresValidation%3e%0d%0a++++++++++%3cIsRequired%3efalse%3c%2fIsRequired%3e%0d%0a++++++++++%3cType%3eText+Box%3c%2fType%3e%0d%0a++++++++++%3cDefaultValue+%2f%3e%0d%0a++++++++++%3cValueType+%2f%3e%0d%0a++++++++%3c%2fInputCell%3e%0d%0a++++++%3c%2fTD%3e%0d%0a++++++%3cTD+Style%3d%22Class65%22+Merge%3d%22False%22+RowSpan%3d%22%22+ColSpan%3d%22%22+Format%3d%22General%22+Width%3d%2291.5%22+Text%3d%22%22+Height%3d%2215%22+Align%3d%22Left%22+CellHasFormula%3d%22False%22+FontName%3d%22Calibri%22+WrapText%3d%22False%22+FontSize%3d%2210%22+X%3d%225%22+Y%3d%2219%22%3e%0d%0a++++++++%3cInputCell%3e%0d%0a++++++++++%3cAddress%3e%3d'Teacher+Weekly+Schedule'!%24E%2419%3c%2fAddress%3e%0d%0a++++++++++%3cListItemsAddress+%2f%3e%0d%0a++++++++++%3cNameIndex%3e118%3c%2fNameIndex%3e%0d%0a++++++++++%3cIsHidingEnabled%3efalse%3c%2fIsHidingEnabled%3e%0d%0a++++++++++%3cIsDisablingEnabled%3efalse%3c%2fIsDisablingEnabled%3e%0d%0a++++++++++%3cRequiresValidation%3efalse%3c%2fRequiresValidation%3e%0d%0a++++++++++%3cIsRequired%3efalse%3c%2fIsRequired%3e%0d%0a++++++++++%3cType%3eText+Box%3c%2fType%3e%0d%0a++++++++++%3cDefaultValue+%2f%3e%0d%0a++++++++++%3cValueType+%2f%3e%0d%0a++++++++%3c%2fInputCell%3e%0d%0a++++++%3c%2fTD%3e%0d%0a++++++%3cTD+Style%3d%22Class66%22+Merge%3d%22False%22+RowSpan%3d%22%22+ColSpan%3d%22%22+Format%3d%22General%22+Width%3d%2231.5%22+Text%3d%22%22+Height%3d%2215%22+Align%3d%22Left%22+CellHasFormula%3d%22False%22+FontName%3d%22Calibri%22+WrapText%3d%22False%22+FontSize%3d%229%22+X%3d%226%22+Y%3d%2219%22%3e%0d%0a++++++++%3cInputCell%3e%0d%0a++++++++++%3cAddress%3e%3d'Teacher+Weekly+Schedule'!%24F%2419%3c%2fAddress%3e%0d%0a++++++++++%3cListItemsAddress%3e%3d'Teacher+Weekly+Schedule'!%24V%245%3a%24V%246%3c%2fListItemsAddress%3e%0d%0a++++++++++%3cNameIndex%3e25%3c%2fNameIndex%3e%0d%0a++++++++++%3cIsHidingEnabled%3efalse%3c%2fIsHidingEnabled%3e%0d%0a++++++++++%3cIsDisablingEnabled%3efalse%3c%2fIsDisablingEnabled%3e%0d%0a++++++++++%3cRequiresValidation%3efalse%3c%2fRequiresValidation%3e%0d%0a++++++++++%3cIsRequired%3efalse%3c%2fIsRequired%3e%0d%0a++++++++++%3cType%3eCheck+Box%3c%2fType%3e%0d%0a++++++++++%3cDefaultValue%3eNo%3c%2fDefaultValue%3e%0d%0a++++++++++%3cValueType+%2f%3e%0d%0a++++++++%3c%2fInputCell%3e%0d%0a++++++%3c%2fTD%3e%0d%0a++++++%3cTD+Style%3d%22Class62%22+Merge%3d%22False%22+RowSpan%3d%22%22+ColSpan%3d%22%22+Format%3d%22General%22+Width%3d%2224.75%22+Text%3d%22%22+Height%3d%2215%22+Align%3d%22Left%22+CellHasFormula%3d%22True%22+FontName%3d%22Calibri%22+WrapText%3d%22False%22+FontSize%3d%229%22+X%3d%227%22+Y%3d%2219%22+%2f%3e%0d%0a++++++%3cTD+Style%3d%22Class64%22+Merge%3d%22False%22+RowSpan%3d%22%22+ColSpan%3d%22%22+Format%3d%22General%22+Width%3d%2218.75%22+Text%3d%222%22+Height%3d%2215%22+Align%3d%22Center%22+CellHasFormula%3d%22False%22+FontName%3d%22Calibri%22+WrapText%3d%22False%22+FontSize%3d%2210%22+X%3d%228%22+Y%3d%2219%22+%2f%3e%0d%0a++++++%3cTD+Style%3d%22Class65%22+Merge%3d%22False%22+RowSpan%3d%22%22+ColSpan%3d%22%22+Format%3d%22General%22+Width%3d%2236.75%22+Text%3d%22%22+Height%3d%2215%22+Align%3d%22Left%22+CellHasFormula%3d%22False%22+FontName%3d%22Calibri%22+WrapText%3d%22False%22+FontSize%3d%2210%22+X%3d%229%22+Y%3d%2219%22%3e%0d%0a++++++++%3cInputCell%3e%0d%0a++++++++++%3cAddress%3e%3d'Teacher+Weekly+Schedule'!%24I%2419%3c%2fAddress%3e%0d%0a++++++++++%3cListItemsAddress+%2f%3e%0d%0a++++++++++%3cNameIndex%3e140%3c%2fNameIndex%3e%0d%0a+"}},{"$cut":{"chars":32761,"head":" +++++++%3c%2fInputCell%3e%0d%0a++++++%3c%2fTD%3e%0d%0a++++++%3cTD+Style%3d%22Class66%22+Merge%3d%22False%22+RowSpan%3d%22%22+ColSpan%3d%22%22+Format%3d%22General%22+Width%3d%2231.5%22+Text%3d%22%22+Height%3d%2215%22+Align%3d%22Left%22+CellHasFormula%3d%22False%22+FontName%3d%22Calibri%22+WrapText%3d%22False%22+FontSize%3d%229%22+X%3d%226%22+Y%3d%2222%22%3e%0d%0a++++++++%3cInputCell%3e%0d%0a++++++++++%3cAddress%3e%3d'Teacher+Weekly+Schedule'!%24F%2422%3c%2fAddress%3e%0d%0a++++++++++%3cListItemsAddress%3e%3d'Teacher+Weekly+Schedule'!%24V%245%3a%24V%246%3c%2fListItemsAddress%3e%0d%0a++++++++++%3cNameIndex%3e28%3c%2fNameIndex%3e%0d%0a++++++++++%3cIsHidingEnabled%3efalse%3c%2fIsHidingEnabled%3e%0d%0a++++++++++%3cIsDisablingEnabled%3efalse%3c%2fIsDisablingEnabled%3e%0d%0a++++++++++%3cRequiresValidation%3efalse%3c%2fRequiresValidation%3e%0d%0a++++++++++%3cIsRequired%3efalse%3c%2fIsRequired%3e%0d%0a++++++++++%3cType%3eCheck+Box%3c%2fType%3e%0d%0a++++++++++%3cDefaultValue%3eNo%3c%2fDefaultValue%3e%0d%0a++++++++++%3cValueType+%2f%3e%0d%0a++++++++%3c%2fInputCell%3e%0d%0a++++++%3c%2fTD%3e%0d%0a++++++%3cTD+Style%3d%22Class62%22+Merge%3d%22False%22+RowSpan%3d%22%22+ColSpan%3d%22%22+Format%3d%22General%22+Width%3d%2224.75%22+Text%3d%22%22+Height%3d%2215%22+Align%3d%22Left%22+CellHasFormula%3d%22True%22+FontName%3d%22Calibri%22+WrapText%3d%22False%22+FontSize%3d%229%22+X%3d%227%22+Y%3d%2222%22+%2f%3e%0d%0a++++++%3cTD+Style%3d%22Class64%22+Merge%3d%22False%22+RowSpan%3d%22%22+ColSpan%3d%22%22+Format%3d%22General%22+Width%3d%2218.75%22+Text%3d%225%22+Height%3d%2215%22+Align%3d%22Center%22+CellHasFormula%3d%22False%22+FontName%3d%22Calibri%22+WrapText%3d%22False%22+FontSize%3d%2210%22+X%3d%228%22+Y%3d%2222%22+%2f%3e%0d%0a++++++%3cTD+Style%3d%22Class65%22+Merge%3d%22False%22+RowSpan%3d%22%22+ColSpan%3d%22%22+Format%3d%22General%22+Width%3d%2236.75%22+Text%3d%22%22+Height%3d%2215%22+Align%3d%22Left%22+CellHasFormula%3d%22False%22+FontName%3d%22Calibri%22+WrapText%3d%22False%22+FontSize%3d%2210%22+X%3d%229%22+Y%3d%2222%22%3e%0d%0a++++++++%3cInputCell%3e%0d%0a++++++++++%3cAddress%3e%3d'Teacher+Weekly+Schedule'!%24I%2422%3c%2fAddress%3e%0d%0a++++++++++%3cListItemsAddress+%2f%3e%0d%0a++++++++++%3cNameIndex%3e149%3c%2fNameIndex%3e%0d%0a++++++++++%3cIsHidingEnabled%3efalse%3c%2fIsHidingEnabled%3e%0d%0a++++++++++%3cIsDisablingEnabled%3efalse%3c%2fIsDisablingEnabled%3e%0d%0a++++++++++%3cRequiresValidation%3efalse%3c%2fRequiresValidation%3e%0d%0a++++++++++%3cIsRequired%3efalse%3c%2fIsRequired%3e%0d%0a++++++++++%3cType%3eText+Box%3c%2fType%3e%0d%0a++++++++++%3cDefaultValue+%2f%3e%0d%0a++++++++++%3cValueType+%2f%3e%0d%0a++++++++%3c%2fInputCell%3e%0d%0a++++++%3c%2fTD%3e%0d%0a++++++%3cTD+Style%3d%22Class65%22+Merge%3d%22False%22+RowSpan%3d%22%22+ColSpan%3d%22%22+Format%3d%22General%22+Width%3d%2236.75%22+Text%3d%22%22+Height%3d%2215%22+Align%3d%22Left%22+CellHasFormula%3d%22False%22+FontName%3d%22Calibri%22+WrapText%3d%22False%22+FontSize%3d%2210%22+X%3d%2210%22+Y%3d%2222%22%3e%0d%0a++++++++%3cInputCell%3e%0d%0a++++++++++%3cAddress%3e%3d'Teacher+Weekly+Schedule'!%24J%2422%3c%2fAddress%3e%0d%0a++++++++++%3cListItemsAddress+%2f%3e%0d%0a++++++++++%3cNameIndex%3e150%3c%2fNameIndex%3e%0d%0a++++++++++%3cIsHidingEnabled%3efalse%3c%2fIsHidingEnabled%3e%0d%0a++++++++++%3cIsDisablingEnabled%3efalse%3c%2fIsDisablingEnabled%3e%0d%0a++++++++++%3cRequiresValidation%3efalse%3c%2fRequiresValidation%3e%0d%0a++++++++++%3cIsRequired%3efalse%3c%2fIsRequired%3e%0d%0a++++++++++%3cType%3eText+Box%3c%2fType%3e%0d%0a++++++++++%3cDefaultValue+%2f%3e%0d%0a++++++++++%3cValueType+%2f%3e%0d%0a++++++++%3c%2fInputCell%3e%0d%0a++++++%3c%2fTD%3e%0d%0a++++++%3cTD+Style%3d%22Class65%22+Merge%3d%22False%22+RowSpan%3d%22%22+ColSpan%3d%22%22+Format%3d%22General%22+Width%3d%2291.5%22+Text%3d%22%22+Height%3d%2215%22+Align%3d%22Left%22+CellHasFormula%3d%22False%22+FontName%3d%22Calibri%22+WrapText%3d%22False%22+FontSize%3d%2210%22+X%3d%2211%22+Y%3d%2222%22%3e%0d%0a++++++++%3cInputCell%3e%0d%0a++++++++++%3cAddress%3e%3d'Teacher+Weekly+Schedule'!%24K%2422%3c%2fAddress%3e%0d%0a++++++++++%3cListIte"}}," +Box%3c%2fType%3e%0d%0a++++++++++%3cDefaultValue+%2f%3e%0d%0a++++++++++%3cValueType+%2f%3e%0d%0a++++++++%3c%2fInputCell%3e%0d%0a++++++%3c%2fTD%3e%0d%0a++++++%3cTD+Style%3d%22Class68%22+Merge%3d%22False%22+RowSpan%3d%22%22+ColSpan%3d%22%22+Format%3d%22General%22+Width%3d%2291.5%22+Text%3d%22%22+Height%3d%2215%22+Align%3d%22Left%22+CellHasFormula%3d%22False%22+FontName%3d%22Calibri%22+WrapText%3d%22False%22+FontSize%3d%2210%22+X%3d%225%22+Y%3d%2225%22%3e%0d%0a++++++++%3cInputCell%3e%0d%0a++++++++++%3cAddress%3e%3d'Teacher+Weekly+Schedule'!%24E%2425%3c%2fAddress%3e%0d%0a++++++++++%3cListItemsAddress+%2f%3e%0d%0a++++++++++%3cNameIndex%3e136%3c%2fNameIndex%3e%0d%0a++++++++++%3cIsHidingEnabled%3efalse%3c%2fIsHidingEnabled%3e%0d%0a++++++++++%3cIsDisablingEnabled%3efalse%3c%2fIsDisablingEnabled%3e%0d%0a++++++++++%3cRequiresValidation%3efalse%3c%2fRequiresValidation%3e%0d%0a++++++++++%3cIsRequired%3efalse%3c%2fIsRequired%3e%0d%0a++++++++++%3cType%3eText+Box%3c%2fType%3e%0d%0a++++++++++%3cDefaultValue+%2f%3e%0d%0a++++++++++%3cValueType+%2f%3e%0d%0a++++++++%3c%2fInputCell%3e%0d%0a++++++%3c%2fTD%3e%0d%0a++++++%3cTD+Style%3d%22Class69%22+Merge%3d%22False%22+RowSpan%3d%22%22+ColSpan%3d%22%22+Format%3d%22General%22+Width%3d%2231.5%22+Text%3d%22%22+Height%3d%2215%22+Align%3d%22Left%22+CellHasFormula%3d%22False%22+FontName%3d%22Calibri%22+WrapText%3d%22False%22+FontSize%3d%229%22+X%3d%226%22+Y%3d%2225%22%3e%0d%0a++++++++%3cInputCell%3e%0d%0a++++++++++%3cAddress%3e%3d'Teacher+Weekly+Schedule'!%24F%2425%3c%2fAddress%3e%0d%0a++++++++++%3cListItemsAddress%3e%3d'Teacher+Weekly+Schedule'!%24V%245%3a%24V%246%3c%2fListItemsAddress%3e%0d%0a++++++++++%3cNameIndex%3e31%3c%2fNameIndex%3e%0d%0a++++++++++%3cIsHidingEnabled%3efalse%3c%2fIsHidingEnabled%3e%0d%0a++++++++++%3cIsDisablingEnabled%3efalse%3c%2fIsDisablingEnabled%3e%0d%0a++++++++++%3cRequiresValidation%3efalse%3c%2fRequiresValidation%3e%0d%0a++++++++++%3cIsRequired%3efalse%3c%2fIsRequired%3e%0d%0a++++++++++%3cType%3eCheck+Box%3c%2fType%3e%0d%0a++++++++++%3cDefaultValue%3eNo%3c%2fDefaultValue%3e%0d%0a++++++++++%3cValueType+%2f%3e%0d%0a++++++++%3c%2fInputCell%3e%0d%0a++++++%3c%2fTD%3e%0d%0a++++++%3cTD+Style%3d%22Class62%22+Merge%3d%22False%22+RowSpan%3d%22%22+ColSpan%3d%22%22+Format%3d%22General%22+Width%3d%2224.75%22+Text%3d%22%22+Height%3d%2215%22+Align%3d%22Left%22+CellHasFormula%3d%22True%22+FontName%3d%22Calibri%22+WrapText%3d%22False%22+FontSize%3d%229%22+X%3d%227%22+Y%3d%2225%22+%2f%3e%0d%0a++++++%3cTD+Style%3d%22Class67%22+Merge%3d%22False%22+RowSpan%3d%22%22+ColSpan%3d%22%22+Format%3d%22General%22+Width%3d%2218.75%22+Text%3d%228%22+Height%3d%2215%22+Align%3d%22Center%22+CellHasFormula%3d%22False%22+FontName%3d%22Calibri%22+WrapText%3d%22False%22+FontSize%3d%2210%22+X%3d%228%22+Y%3d%2225%22+%2f%3e%0d%0a++++++%3cTD+Style%3d%22Class68%22+Merge%3d%22False%22+RowSpan%3d%22%22+ColSpan%3d%22%22+Format%3d%22General%22+Width%3d%2236.75%22+Text%3d%22%22+Height%3d%2215%22+Align%3d%22Left%22+CellHasFormula%3d%22False%22+FontName%3d%22Calibri%22+WrapText%3d%22False%22+FontSize%3d%2210%22+X%3d%229%22+Y%3d%2225%22%3e%0d%0a++++++++%3cInputCell%3e%0d%0a++++++++++%3cAddress%3e%3d'Teacher+Weekly+Schedule'!%24I%2425%3c%2fAddress%3e%0d%0a++++++++++%3cListItemsAddress+%2f%3e%0d%0a++++++++++%3cNameIndex%3e158%3c%2fNameIndex%3e%0d%0a++++++++++%3cIsHidingEnabled%3efalse%3c%2fIsHidingEnabled%3e%0d%0a++++++++++%3cIsDisablingEnabled%3efalse%3c%2fIsDisablingEnabled%3e%0d%0a++++++++++%3cRequiresValidation%3efalse%3c%2fRequiresValidation%3e%0d%0a++++++++++%3cIsRequired%3efalse%3c%2fIsRequired%3e%0d%0a++++++++++%3cType%3eText+Box%3c%2fType%3e%0d%0a++++++++++%3cDefaultValue+%2f%3e%0d%0a++++++++++%3cValueType+%2f%3e%0d%0a++++++++%3c%2fInputCell%3e%0d%0a++++++%3c%2fTD%3e%0d%0a++++++%3cTD+Style%3d%22Class68%22+Merge%3d%22False%22+RowSpan%3d%22%22+ColSpan%3d%22%22+Format%3d%22General%22+Width%3d%2236.75%22+Text%3d%22%22+Height%3d%2215%22+Align%3d%22Left%22+CellHasFormula%3d%22False%22+FontName%3d%22Calibri%22+WrapText%3d%22False%22+FontSize%3d%2210%22+X%3d%2210%22+Y%3d%2225%22%3e%0d%0a++++++++%3cInputCell%3e%0d%0a++++++++++%3cAddress%3e%3d'Teacher+Weekly+Schedule'!%24J%2425%3c%2fAddress%3e%0d%0a++++++++++%3cListItemsAddress+%2f%3e%0d%0a++++++++++%3cNameIndex%3e159%3c%2fNameIndex%3e%0d%0a++++++++++%3cIsHidingEnabled%3efalse%3c%2fIsHidingEnabled%3e%0d%0a++++++++++%3cIsDisablingEnabled%3efalse%3c%2fIsDisablingEnabled%3e%0d%0a++++++++++%3cRequiresValidation%3efalse%3c%2fRequiresValidation%3e%0d%0a++++++++++%3cIsRequired%3efalse%3c%2fIsRequired%3e%0d%0a++++++++++%3cType%3eText+Box%3c%2fType%3e%0d%0a++++++++++%3cDefaultValue+%2f%3e%0d%0a++++++++++%3cValueType+%2f%3e%0d%0a++++++++%3c%2fInputCell%3e%0d%0a++++++%3c%2fTD%3e%0d%0a++++++%3cTD+Style%3d%22Class68%22+Merge%3d%22False%22+RowSpan%3d%22%22+ColSpan%3d%22%22+Format%3d%22General%22+Width%3d%2291.5%22+Text%3d%22%22+Height%3d%2215%22+Align%3d%22Left%22+CellHasFormula%3d%22False%22+FontName%3d%22Calibri%22+WrapText%3d%22False%22+FontSize%3d%2210%22+X%3d%2211%22+Y%3d%2225%22%3e%0d%0a++++++++%3cInputCell%3e%0d%0a++++++++++%3cAddress%3e%3d'Teacher+Weekly+Schedule'!%24K%2425%3c%2fAddress%3e%0d%0a++++++++++%3cListItemsAddress+%2f%3e%0d%0a++++++++++%3cNameIndex%3e160%3c%2fNameIndex%3e%0d%0a++++++++++%3cIsHidingEnabled%3efalse%3c%2fIsHidingEnabled%3e%0d%0a++++++++++%3cIsDisablingEnabled%3efalse%3c%2fIsDisablingEnabled%3e%0d%0a++++++++++%3cRequiresValidation%3efalse%3c%2fRequiresValidation%3e%0d%0a++++++++++%3cIsRequired%3efalse%3c%2fIsRequired%3e%0d%0a++++++++++%3cType%3eText+Box%3c%2fType%3e%0d%0a++++++++++%3cDefaultValue+%2f%3e%0d%0a++++++++++%3cValueType+%2f%3e%0d%0a++++++++%3c%2fInputCell%3e%0d%0a++++++%3c%2fTD%3e%0d%0a++++++%3cTD+Style%3d%22Class69%22+Merge%3d%22False%22+RowSpan%3d%22%22+ColSpan%3d%22%22+Format%3d%22General%22+Width%3d%2231.5%22+Text%3d%22%22+Height%3d%2215%22+Align%3d%22Left%22+CellHasFormula%3d%22False%22+FontName%3d%22Calibri%22+WrapText%3d%22False%22+FontSize%3d%229%22+X%3d%2212%22+Y%3d%2225%22%3e%0d%0a++++++++%3cInputCell%3e%0d%0a++++++++++%3cAddress%3e%3d'Teacher+Weekly+Schedule'!%24L%2425%3c%2fAddress%3e%0d%0a++++++++++%3cListItemsAddress%3e%3d'Teacher+Weekly+Schedule'!%24V%245%3a%24V%246%3c%2fListItemsAddress%3e%0d%0a++++++++++%3cNameIndex%3e39%3c%2fNameIndex%3e%0d%0a++++++++++%3cIsHidingEnabled%3efalse%3c%2fIsHidingEnabled%3e%0d%0a++++++++++%3cIsDisablingEnabled%3efalse%3c%2fIsDisablingEnabled%3e%0d%0a++++++++++%3cRequiresValidation%3efalse%3c%2fRequiresValidation%3e%0d%0a++++++++++%3cIsRequired%3efalse%3c%2fIsRequired%3e%0d%0a++++++++++%3cType%3eCheck+Box%3c%2fType%3e%0d%0a++++++++++%3cDefaultValue%3eNo%3c%2fDefaultValue%3e%0d%0a++++++++++%3cValueType+%2f%3e%0d%0a++++++++%3c%2fInputCell%3e%0d%0a++++++%3c%2fTD%3e%0d%0a++++++%3cTD+Style%3d%22Class76%22+Merge%3d%22False%22+RowSpan%3d%22%22+ColSpan%3d%22%22+Format%3d%22General%22+Width%3d%2224.75%22+Text%3d%22%22+Height%3d%2215%22+Align%3d%22Left%22+CellHasFormula%3d%22True%22+FontName%3d%22Calibri%22+WrapText%3d%22False%22+FontSize%3d%229%22+X%3d%2213%22+Y%3d%2225%22+%2f%3e%0d%0a++++++%3cTD+Style%3d%22Class65%22+Merge%3d%22False%22+RowSpan%3d%22%22+ColSpan%3d%22%22+Format%3d%22General%22+Width%3d%2218.75%22+Text%3d%22%22+Height%3d%2215%22+Align%3d%22Left%22+CellHasFormula%3d%22False%22+FontName%3d%22Calibri%22+WrapText%3d%22False%22+FontSize%3d%2210%22+X%3d%2214%22+Y%3d%2225%22+%2f%3e%0d%0a++++++%3cTD+Style%3d%22Class65%22+Merge%3d%22False%22+RowSpan%3d%22%22+ColSpan%3d%22%22+Format%3d%22General%22+Width%3d%2236.75%22+Text%3d%22%22+Height%3d%2215%22+Align%3d%22Left%22+CellHasFormula%3d%22False%22+FontName%3d%22Calibri%22+WrapText%3d%22False%22+FontSize%3d%2210%22+X%3d%2215%22+Y%3d%2225%22+%2f%3e%0d%0a++++++%3cTD+Style%3d%22Class65%22+Merge%3d%22False%22+RowSpan%3d%22%22+ColSpan%3d%22%22+Format%3d%22General%22+Width%3d%2236.75%22+Text%3d%22%22+Height%3d%2215%22+Align%3d%22Left%22+CellHasFormula%3d%22False%22+FontName%3d%22Calibri%22+WrapText%3d%22False%22+FontSize%3d%2210%22+X%3d%2216%22+Y%3d%2225%22+%2f%3e%0d%0a++++++%3cTD+Style%3d%22Class81%22+Merge%3d%22True%22+RowSpan%3d%22%22+ColSpan%3d%222%22+Format%3d%22General%22+Width%3d%22123%22+Text%3d%22Pagos.SpreadsheetWEB.Button.SAVE_Save+Schedule%22+Height%3d%2215%22+Align%3d%22Center%22+CellHasFormula%3d%22False%22+FontName%3d%22Calibri%22+WrapText%3d%22False%22+FontSize%3d%2210%22+X%3d%2217%22+Y%3d%2225%22+%2f%3e%0d%0a++++++%3cTD+Style%3d%22Class42%22+Merge%3d%22False%22+RowSpan%3d%22%22+ColSpan%3d%22%22+Format%3d%22General%22+Width%3d%2221.75%22+Text%3d%22%22+Height%3d%2215%22+Align%3d%22Left%22+CellHasFormula%3d%22False%22+FontName%3d%22Calibri%22+WrapText%3d%22False%22+FontSize%3d%2211%22+X%3d%2219%22+Y%3d%2225%22+%2f%3e%0d%0a++++%3c%2fTR%3e%0d%0a++++%3cTR%3e%0d%0a++++++%3cTD+Style%3d%22Class70%22+Merge%3d%22False%22+RowSpan%3d%22%22+ColSpan%3d%22%22+Format%3d%22General%22+Width%3d%2238.25%22+Text%3d%22%22+Height%3d%2215%22+Align%3d%22Left%22+CellHasFormula%3d%22False%22+FontName%3d%22Calibri%22+WrapText%3d%22False%22+FontSize%3d%229%22+X%3d%221%22+Y%3d%2226%22+%2f%3e%0d%0a++++++%3cTD+Style%3d%22Class73%22+Merge%3d%22False%22+RowSpan%3d%22%22+ColSpan%3d%22%22+Format%3d%22General%22+Width%3d%2218.75%22+Text%3d%22%22+Height%3d%2215%22+Align%3d%22Left%22+CellHasFormula%3d%22False%22+FontName%3d%22Calibri%22+WrapText%3d%22False%22+FontSize%3d%229%22+X%3d%222%22+Y%3d%2226%22+%2f%3e%0d%0a++++++%3cTD+Style%3d%22Class73%22+Merge%3d%22False%22+RowSpan%3d%22%22+ColSpan%3d%22%22+Format%3d%22General%22+Width%3d%2227%22+Text%3d%22%22+Height%3d%2215%22+Align%3d%22Left%22+CellHasFormula%3d%22False%22+FontName%3d%22Calibri%22+WrapText%3d%22False%22+FontSize%3d%229%22+X%3d%223%22+Y%3d%2226%22+%2f%3e%0d%0a++++++%3cTD+Style%3d%22Class73%22+Merge%3d%22False%22+RowSpan%3d%22%22+ColSpan%3d%22%22+Format%3d%22General%22+Width%3d%2257%22+Text%3d%22%22+Height%3d%2215%22+Align%3d%22Left%22+CellHasFormula%3d%22False%22+FontName%3d%22Calibri%22+WrapText%3d%22False%22+FontSize%3d%229%22+X%3d%224%22+Y%3d%2226%22+%2f%3e%0d%0a++++++%3cTD+Style%3d%22Class73%22+Merge%3d%22False%22+RowSpan%3d%22%22+ColSpan%3d%22%22+Format%3d%22General%22+Width%3d%2291.5%22+Text%3d%22%22+Height%3d%2215%22+Align%3d%22Left%22+CellHasFormula%3d%22False%22+FontName%3d%22Calibri%22+WrapText%3d%22False%22+FontSize%3d%229%22+X%3d%225%22+Y%3d%2226%22+%2f%3e%0d%0a++++++%3cTD+Style%3d%22Class73%22+Merge%3d%22False%22+RowSpan%3d%22%22+ColSpan%3d%22%22+Format%3d%22General%22+Width%3d%2231.5%22+Text%3d%22%22+Height%3d%2215%22+Align%3d%22Left%22+CellHasFormula%3d%22False%22+FontName%3d%22Calibri%22+WrapText%3d%22False%22+FontSize%3d%229%22+X%3d%226%22+Y%3d%2226%22+%2f%3e%0d%0a++++++%3cTD+Style%3d%22Class82%22+Merge%3d%22False%22+RowSpan%3d%22%22+ColSpan%3d%22%22+Format%3d%22General%22+Width%3d%2224.75%22+Text%3d%22%22+Height%3d%2215%22+Align%3d%22Left%22+CellHasFormula%3d%22False%22+FontName%3d%22Calibri%22+WrapText%3d%22False%22+FontSize%3d%229%22+X%3d%227%22+Y%3d%2226%22+%2f%3e%0d%0a++++++%3cTD+Style%3d%22Class73%22+Merge%3d%22False%22+RowSpan%3d%22%22+ColSpan%3d%22%22+Format%3d%22General%22+Width%3d%2218.75%22+Text%3d%22%22+Height%3d%2215%22+Align%3d%22Left%22+CellHasFormula%3d%22False%22+FontName%3d%22Calibri%22+WrapText%3d%22False%22+FontSize%3d%229%22+X%3d%228%22+Y%3d%2226%22+%2f%3e%0d%0a++++++%3cTD+Style%3d%22Class73%22+Merge%3d%22False%22+RowSpan%3d%22%22+ColSpan%3d%22%22+Format%3d%22General%22+Width%3d%2236.75%22+Text%3d%22%22+Height%3d%2215%22+Align%3d%22Left%22+CellHasFormula%3d%22False%22+FontName%3d%22Calibri%22+WrapText%3d%22False%22+FontSize%3d%229%22+X%3d%229%22+Y%3d%2226%22+%2f%3e%0d%0a++++++%3cTD+Style%3d%22Class73%22+Merge%3d%22False%22+RowSpan%3d%22%22+ColSpan%3d%22%22+Format%3d%22General%22+Width%3d%2236.75%22+Text%3d%22%22+Height%3d%2215%22+Align%3d%22Left%22+CellHasFormula%3d%22False%22+FontName%3d%22Calibri%22+WrapText%3d%22False%22+FontSize%3d%229%22+X%3d%2210%22+Y%3d%2226%22+%2f%3e%0d%0a++++++%3cTD+Style%3d%22Class73%22+Merge%3d%22False%22+RowSpan%3d%22%22+ColSpan%3d%22%22+Format%3d%22General%22+Width%3d%2291.5%22+Text%3d%22%22+Height%3d%2215%22+Align%3d%22Left%22+CellHasFormula%3d%22False%22+FontName%3d%22Calibri%22+WrapText%3d%22False%22+FontSize%3d%229%22+X%3d%2211%22+Y%3d%2226%22+%2f%3e%0d%0a++++++%3cTD+Style%3d%22Class73%22+Merge%3d%22False%22+RowSpan%3d%22%22+ColSpan%3d%22%22+Format%3d%22General%22+Width%3d%2231.5%22+Text%3d%22%22+Height%3d%2215%22+Align%3d%22Left%22+CellHasFormula%3d%22False%22+FontName%3d%22Calibri%22+WrapText%3d%22False%22+FontSize%3d%229%22+X%3d%2212%22+Y%3d%2226%22+%2f%3e%0d%0a++++++%3cTD+Style%3d%22Class82%22+Merge%3d%22False%22+RowSpan%3d%22%22+ColSpan%3d%22%22+Format%3d%22General%22+Width%3d%2224.75%22+Text%3d%22%22+Height%3d%2215%22+Align%3d%22Left%22+CellHasFormula%3d%22False%22+FontName%3d%22Calibri%22+WrapText%3d%22False%22+FontSize%3d%229%22+X%3d%2213%22+Y%3d%2226%22+%2f%3e%0d%0a++++++%3cTD+Style%3d%22Class82%22+Merge%3d%22False%22+RowSpan%3d%22%22+ColSpan%3d%22%22+Format%3d%22General%22+Width%3d%2218.75%22+Text%3d%22%22+Height%3d%2215%22+Align%3d%22Left%22+CellHasFormula%3d%22False%22+FontName%3d%22Calibri%22+WrapText%3d%22False%22+FontSize%3d%229%22+X%3d%2214%22+Y%3d%2226%22+%2f%3e%0d%0a++++++%3cTD+Style%3d%22Class82%22+Merge%3d%22False%22+RowSpan%3d%22%22+ColSpan%3d%22%22+Format%3d%22General%22+Width%3d%2236.75%22+Text%3d%22%22+Height%3d%2215%22+Align%3d%22Left%22+CellHasFormula%3d%22False%22+FontName%3d%22Calibri%22+WrapText%3d%22False%22+FontSize%3d%229%22+X%3d%2215%22+Y%3d%2226%22+%2f%3e%0d%0a++++++%3cTD+Style%3d%22Class82%22+Merge%3d%22False%22+RowSpan%3d%22%22+ColSpan%3d%22%22+Format%3d%22General%22+Width%3d%2236.75%22+Text%3d%22%22+Height%3d%2215%22+Align%3d%22Left%22+CellHasFormula%3d%22False%22+FontName%3d%22Calibri%22+WrapText%3d%22False%22+FontSize%3d%229%22+X%3d%2216%22+Y%3d%2226%22+%2f%3e%0d%0a++++++%3cTD+Style%3d%22Class82%22+Merge%3d%22False%22+RowSpan%3d%22%22+ColSpan%3d%22%22+Format%3d%22General%22+Width%3d%2291.5%22+Text%3d%22%22+Height%3d%2215%22+Align%3d%22Left%22+CellHasFormula%3d%22False%22+FontName%3d%22Calibri%22+WrapText%3d%22False%22+FontSize%3d%229%22+X%3d%2217%22+Y%3d%2226%22+%2f%3e%0d%0a++++++%3cTD+Style%3d%22Class82%22+Merge%3d%22False%22+RowSpan%3d%22%22+ColSpan%3d%22%22+Format%3d%22General%22+Width%3d%2231.5%22+Text%3d%22%22+Height%3d%2215%22+Align%3d%22Left%22+CellHasFormula%3d%22False%22+FontName%3d%22Calibri%22+WrapText%3d%22False%22+FontSize%3d%229%22+X%3d%2218%22+Y%3d%2226%22+%2f%3e%0d%0a++++++%3cTD+Style%3d%22Class42%22+Merge%3d%22False%22+RowSpan%3d%22%22+ColSpan%3d%22%22+Format%3d%22General%22+Width%3d%2221.75%22+Text%3d%22%22+Height%3d%2215%22+Align%3d%22Left%22+CellHasFormula%3d%22False%22+FontName%3d%22Calibri%22+WrapText%3d%22False%22+FontSize%3d%2211%22+X%3d%2219%22+Y%3d%2226%22+%2f%3e%0d%0a++++%3c%2fTR%3e%0d%0a++%3c%2fTable%3e%0d%0a%3c%2fTables%3e"]
["%3c%3fxml+version%3d%221.0%22+encoding%3d%22utf-16%22%3f%3e%0d%0a%3cPageLayouts+xmlns%3axsi%3d%22http%3a%2f%2fwww.w3.org%2f2001%2fXMLSchema-instance%22+xmlns%3axsd%3d%22http%3a%2f%2fwww.w3.org%2f2001%2fXMLSchema%22+IsTabsVisible%3d%22true%22+InitialPageIndex%3d%220%22%3e%0d%0a++%3cPageLayout+Index%3d%220%22+IsPageHidingEnabled%3d%22false%22+Order%3d%220%22+FileName%3d%221.+Teacher+Weekly+Sc%22+IsAjaxEnabled%3d%22false%22+Recipient%3d%22Enter+e-mail+address+here.%22+Location%3d%22Bottom%22+Alignment%3d%22Center%22+AutoResponseEmail%3d%22False%22+NotificationEmail%3d%22False%22+PageForwarding%3d%22False%22+PageForwardingCustomPage%3d%22False%22+PageForwardingIsExternalURL%3d%22False%22+PageForwardingExternalURL%3d%22None%22%3e%0d%0a++++%3cControls%3e%0d%0a++++++%3cPageControl+Enabled%3d%22true%22+Type%3d%22Calculate%22+Order%3d%220%22+CellLink%3d%22%3d'Teacher+Weekly+Schedule'!%24Q%2423%22+Name%3d%22Analyze+Week%22+%2f%3e%0d%0a++++++%3cPageControl+Enabled%3d%22false%22+Type%3d%22Reset%22+Order%3d%221%22+CellLink%3d%22DEFAULT%22+Name%3d%22Reset%22+%2f%3e%0d%0a++++++%3cPageControl+Enabled%3d%22false%22+Type%3d%22Send+Results%22+Order%3d%222%22+CellLink%3d%22DEFAULT%22+Name%3d%22Submit%22+%2f%3e%0d%0a++++++%3cPageControl+Enabled%3d%22true%22+Type%3d%22Save%22+Order%3d%223%22+CellLink%3d%22%3d'Teacher+Weekly+Schedule'!%24Q%2425%22+Name%3d%22Save+Schedule%22+%2f%3e%0d%0a++++++%3cPageControl+Enabled%3d%22false%22+Type%3d%22Back%22+Order%3d%225%22+CellLink%3d%22DEFAULT%22+Name%3d%22Back%22+%2f%3e%0d%0a++++++%3cPageControl+Enabled%3d%22false%22+Type%3d%22Next%22+Order%3d%224%22+CellLink%3d%22DEFAULT%22+Name%3d%22Next%22+%2f%3e%0d%0a++++%3c%2fControls%3e%0d%0a++%3c%2fPageLayout%3e%0d%0a++%3cApplicationName%3eTeacher+Class+Schedule+(Online)4%3c%2fApplicationName%3e%0d%0a%3c%2fPageLayouts%3e"]
["\n.Class42{font-family: Calibri; font-size:11pt; color:Black;border: 0.5pt  None  Black ;background-color:White; text-align:left;vertical-align:bottom;}\n.Class43{font-family: Calibri; font-size:11pt; color:Black;border-bottom-style: Solid ;border-width: 0.5pt ;border-color: Black ;background-color:White; text-align:left;vertical-align:bottom;}\n.Class44{font-family: Goudy Old Style; font-size:14pt; color:#254061;font-weight: bold;border: 0.5pt  None  Black ;background-color:White; text-align:left;vertical-align:middle;}\n.Class45{font-family: Calibri; font-size:11pt; color:#254061;border: 0.5pt  Solid  Black ;background-color:#DBE5F1; text-align:right;vertical-align:middle;}\n.Class46{font-family: Calibri; font-size:11pt; color:Black;border: 0.5pt  Solid  Black ;background-color:#DBE5F1; text-align:left;vertical-align:middle;}\n.Class47{font-family: Calibri; font-size:11pt; color:Black;border-left-style: Solid ;border-width: 0.5pt ;border-color: Black ;background-color:White; text-align:left;vertical-align:middle;}\n.Class48{font-family: Calibri; font-size:11pt; color:Black;border-bottom-style: Solid ;border-width: 0.5pt ;border-top-color: Black ;border-left-color: Black ;border-right-color: Black ;border-bottom-color: #376091 ;background-color:White; text-align:left;vertical-align:middle;}\n.Class49{font-family: Calibri; font-size:11pt; color:Black;border: 0.5pt  None  Black ;background-color:White; text-align:left;vertical-align:middle;}\n.Class50{font-family: Calibri; font-size:11pt; color:Black;border-top-style: Solid ;border-bottom-style: Solid ;border-width: 0.5pt ;border-top-color: Black ;border-left-color: Black ;border-right-color: Black ;border-bottom-color: #376091 ;background-color:White; text-align:left;vertical-align:middle;}\n.Class51{font-family: Calibri; font-size:9pt; color:Black;border-right-style: Solid ;border-width: 0.5pt ;border-top-color: Black ;border-left-color: Black ;border-right-color: #376091 ;border-bottom-color: Black ;background-color:White; text-align:left;vertical-align:bottom;}\n.Class52{font-family: Felix Titling; font-size:10pt; color:Black;font-weight: bold;border-top-style: Solid ;border-left-style: Solid ;border-width: 0.5pt ;border-top-color: #376091 ;border-left-color: #376091 ;border-right-color: Black ;border-bottom-color: Black ;background-color:#95B3D7; text-align:center;vertical-align:middle;}\n.Class53{font-family: Calibri; font-size:9pt; color:Black;border-left-style: Solid ;border-right-style: Solid ;border-width: 0.5pt ;border-top-color: Black ;border-left-color: #376091 ;border-right-color: #376091 ;border-bottom-color: Black ;background-color:White; text-align:left;vertical-align:middle;}\n.Class54{font-family: Calibri; font-size:9pt; color:White;border-left-style: Solid ;border-right-style: Solid ;border-width: 0.5pt ;border-top-color: Black ;border-left-color: #376091 ;border-right-color: #376091 ;border-bottom-color: Black ;background-color:White; text-align:left;vertical-align:middle;}\n.Class55{font-family: Calibri; font-size:11pt; color:Black;border-left-style: Solid ;border-width: 0.5pt ;border-top-color: Black ;border-left-color: #376091 ;border-right-color: Black ;border-bottom-color: Black ;background-color:White; text-align:left;vertical-align:bottom;}\n.Class56{font-family: Californian FB; font-size:9pt; color:Black;border-left-style: Solid ;border-bottom-style: Solid ;border-width: 0.5pt ;border-top-color: Black ;border-left-color: #376091 ;border-right-color: Black ;border-bottom-color: #376091 ;background-color:#B8CCE4; text-align:center;vertical-align:middle;}\n.Class57{font-family: Californian FB; font-size:9pt; color:Black;border-bottom-style: Solid ;border-width: 0.5pt ;border-top-color: Black ;border-left-color: Black ;border-right-color: Black ;border-bottom-color: #376091 ;background-color:#B8CCE4; text-align:left;vertical-align:middle;}\n.Class58{font-family: Californian FB; font-size:9pt; color:Black;border-right-style: Solid ;border-bottom-style: Solid ;border-width: 0.5pt ;border-top-color: Black ;border-left-color: Black ;border-right-color: #376091 ;border-bottom-color: #376091 ;background-color:#B8CCE4; text-align:left;vertical-align:middle;}\n.Class59{font-family: Calibri; font-size:10pt; color:Black;border-top-style: Solid ;border-left-style: Solid ;border-width: 0.5pt ;border-top-color: #376091 ;border-left-color: #376091 ;border-right-color: Black ;border-bottom-color: Black ;background-color:White; text-align:center;vertical-align:middle;}\n.Class60{font-family: Calibri; font-size:10pt; color:Black;border-top-style: Solid ;border-width: 0.5pt ;border-top-color: #376091 ;border-left-color: Black ;border-right-color: Black ;border-bottom-color: Black ;background-color:White; text-align:left;vertical-align:middle;}\n.Class61{font-family: Calibri; font-size:9pt; color:Black;border-top-style: Solid ;border-right-style: Solid ;border-width: 0.5pt ;border-top-color: #376091 ;border-left-color: Black ;border-right-color: #376091 ;border-bottom-color: Black ;background-color:White; text-align:left;vertical-align:middle;}\n.Class62{font-family: Calibri; font-size:9pt; color:White;border-left-style: Solid ;border-right-style: Solid ;border-width: 0.5pt ;border-top-color: Black ;border-left-color: #376091 ;border-right-color: #376091 ;border-bottom-color: Black ;background-color:White; text-align:right;vertical-align:middle;}\n.Class63{font-family: Calibri; font-size:9pt; color:White;border-left-style: Solid ;border-width: 0.5pt ;border-top-color: Black ;border-left-color: #376091 ;border-right-color: Black ;border-bottom-color: Black ;background-color:White; text-align:right;vertical-align:bottom;}\n.Class64{font-family: Calibri; font-size:10pt; color:Black;border-left-style: Solid ;border-width: 0.5pt ;border-top-color: Black ;border-left-color: #376091 ;border-right-color: Black ;border-bottom-color: Black ;background-color:White; text-align:center;vertical-align:middle;}\n.Class65{font-family: Calibri; font-size:10pt; color:Black;border: 0.5pt  None  Black ;background-color:White; text-align:left;vertical-align:middle;}\n.Class66{font-family: Calibri; font-size:9pt; color:Black;border-right-style: Solid ;border-width: 0.5pt ;border-top-color: Black ;border-left-color: Black ;border-right-color: #376091 ;border-bottom-color: Black ;background-color:White; text-align:left;vertical-align:middle;}\n.Class67{font-family: Calibri; font-size:10pt; color:Black;border-left-style: Solid ;border-bottom-style: Solid ;border-width: 0.5pt ;border-top-color: Black ;border-left-color: #376091 ;border-right-color: Black ;border-bottom-color: #376091 ;background-color:White; text-align:center;vertical-align:middle;}\n.Class68{font-family: Calibri; font-size:10pt; color:Black;border-bottom-style: Solid ;border-width: 0.5pt ;border-top-color: Black ;border-left-color: Black ;border-right-color: Black ;border-bottom-color: #376091 ;background-color:White; text-align:left;vertical-align:middle;}\n.Class69{font-family: Calibri; font-size:9pt; color:Black;border-right-style: Solid ;border-bottom-style: Solid ;border-width: 0.5pt ;border-top-color: Black ;border-left-color: Black ;border-right-color: #376091 ;border-bottom-color: #376091 ;background-color:White; text-align:left;vertical-align:middle;}\n.Class70{font-family: Calibri; font-size:9pt; color:Black;border: 0.5pt  None  Black ;background-color:White; text-align:left;vertical-align:bottom;}\n.Class71{font-family: Calibri; font-size:9pt; color:Black;border-top-style: Solid ;border-bottom-style: Solid ;border-width: 0.5pt ;border-top-color: #376091 ;border-left-color: Black ;border-right-color: Black ;border-bottom-color: #376091 ;background-color:White; text-align:left;vertical-align:middle;}\n.Class72{font-family: Calibri; font-size:9pt; color:White;border: 0.5pt  None  Black ;background-color:White; text-align:left;vertical-align:middle;}\n.Class73{font-family: Calibri; font-size:9pt; color:Black;border-top-style: Solid ;border-width: 0.5pt ;border-top-color: #376091 ;border-left-color: Black ;border-right-color: Black ;border-bottom-color: Black ;background-color:White; text-align:left;vertical-align:middle;}\n.Class74{font-family: Calibri; font-size:9pt; color:White;border-left-style: Solid ;border-width: 0.5pt ;border-top-color: Black ;border-left-color: #376091 ;border-right-color: Black ;border-bottom-color: Black ;background-color:White; text-align:left;vertical-align:middle;}\n.Class75{font-family: Californian FB; font-size:11pt; color:White;font-weight: bold;border: 0.5pt  None  Black ;background-color:#953735; text-align:center;vertical-align:middle;}\n.Class76{font-family: Calibri; font-size:9pt; color:White;border-left-style: Solid ;border-width: 0.5pt ;border-top-color: Black ;border-left-color: #376091 ;border-right-color: Black ;border-bottom-color: Black ;background-color:White; text-align:right;vertical-align:middle;}\n.Class77{font-family: Calibri; font-size:11pt; color:#C00000;font-weight: bold;border: 0.5pt  None  Black ;background-color:White; text-align:right;vertical-align:middle;}\n.Class78{font-family: Calibri; font-size:11pt; color:#376091;border: 0.5pt  None  Black ;background-color:White; text-align:left;vertical-align:middle;}\n.Class79{font-family: Calibri; font-size:11pt; color:#C00000;border: 0.5pt  None  Black ;background-color:White; text-align:left;vertical-align:middle;}\n.Class80{font-family: Calibri; font-size:11pt; color:Black;border: 0.5pt  None  Black ;background-color:White; text-align:center;vertical-align:middle;}\n.Class81{font-family: Calibri; font-size:10pt; color:Black;border: 0.5pt  None  Black ;background-color:White; text-align:center;vertical-align:middle;}\n.Class82{font-family: Calibri; font-size:9pt; color:Black;border: 0.5pt  None  Black ;background-color:White; text-align:left;vertical-align:middle;}"]
["tr-TR"]
["2.0.0.0"]
[]
["UEsFBgAAAAAAAAAAAAAAAAAAAAAAAA%3d%3d"]
[]
[]
["%3c%3fxml+version%3d%221.0%22+encoding%3d%22utf-16%22%3f%3e%0d%0a%3cSavingCells+xmlns%3axsi%3d%22http%3a%2f%2fwww.w3.org%2f2001%2fXMLSchema-instance%22+xmlns%3axsd%3d%22http%3a%2f%2fwww.w3.org%2f2001%2fXMLSchema%22+CellCount%3d%222%22+SavingCellPrefix%3d%22PSWSavingCell_%22%3e%0d%0a++%3cCells%3e%0d%0a++++%3cNameIndex%3e0%3c%2fNameIndex%3e%0d%0a++++%3cLabel%3eBeg_Date%3c%2fLabel%3e%0d%0a++++%3cValueType%3eText%3c%2fValueType%3e%0d%0a++++%3cMultiRecordIndex+%2f%3e%0d%0a++%3c%2fCells%3e%0d%0a++%3cCells%3e%0d%0a++++%3cNameIndex%3e1%3c%2fNameIndex%3e%0d%0a++++%3cLabel%3eEnd_Date%3c%2fLabel%3e%0d%0a++++%3cValueType%3eDateTime%3c%2fValueType%3e%0d%0a++++%3cMultiRecordIndex+%2f%3e%0d%0a++%3c%2fCells%3e%0d%0a%3c%2fSavingCells%3e"]